Cogmind - Beta 17.1 @@@ ROGUE MODE // 2026.09.02 @ 18:33:43 Player: Dosh Result: Destroyed by MAIN.C with Omega Cannon Performance ------------- Evolutions (9) 4500 Regions Visited (39) 7800 Robots Destroyed (504) 2520 Value Destroyed (34253) 34253 Prototype IDs (47) 940 Alien Tech Used (0) 0 Bonus (69418) 69418 TOTAL SCORE: 119431 Bonus ------- High Alert Combat Kills 1881 Follower Combat Kills 15235 Prayed to X0-1V1 5000 Major X0-1V1 Interference 23500 Entered Garrisons 2400 Used RIF Installer 9000 Network Hubs Disabled 400 Built Enhanced Grunts 300 A7 Reached Mainframe 300 Met R17 at Cetus 500 Met R17 at Research 2000 Destroyed MAIN.C Guards 500 Met MAIN.C 5000 Destroyed MAIN.C Shell 5000 Friendly Fire -1598 Cogmind --------- Core Integrity 0/1625 Matter 300/300 Energy 1700/1700 System Corruption 33% Temperature Cool (0) Movement Core (50) Location -1/Command Parts ------- > --- POWER (3) -------- (None) > --- PROPULSION (6) --- (None) > --- UTILITY (12) ----- Experimental Weapon Cycler > --- WEAPON (4) ------- (None) > --- INVENTORY (5) ---- Particle Reactor Light Quantum Reactor Compact HERF Cannon Cooled Nova Cannon Ragnarok Missile Launcher Peak State ------------ > --- POWER ------------ Particle Reactor Compact Particle Reactor Light Quantum Reactor > --- PROPULSION ------- Advanced Medium Treads Advanced Medium Treads Advanced Medium Treads Advanced Medium Treads Biometal Heavy Treads > --- UTILITY ---------- Advanced Heat Sink Advanced Cooling System Huge Storage Unit Advanced Target Analyzer Advanced Target Analyzer Quantum Capacitor Experimental Weapon Cycler Advanced Transmission Jammer Relay Coupler [C] Relay Coupler [Proto] X0-1V1's Piety Tracker > --- WEAPON ----------- Cooled Nova Cannon Enhanced Hardcell Cannon Enhanced Hardcell Cannon Enhanced Hardcell Cannon > --- INVENTORY -------- Particle Reactor Particle Reactor Micro Antimatter Reactor Quantum Reactor Light Quantum Reactor Reinforced Quantum Reactor Advanced Medium Treads Advanced Medium Treads Centrium Wheel Improved Heat Sink Experimental Energy Well Improved Matter Compressor Experimental Matter Compressor Experimental Matter Compressor Precision Energy Filter Relay Coupler [NC] Compact HERF Cannon Enhanced Nova Cannon Enhanced Hardcell Cannon Enhanced Hardcell Cannon Enhanced Hardcell Cannon Enhanced Hardcell Cannon Enhanced Hardcell Cannon Ragnarok Missile Launcher Advanced Remote Datajack [Rating: 218] Favorites ----------- Power Quantum Reactor Engine Light Deuterium Engine Power Core Neutrino Core Reactor Quantum Reactor Propulsion Armored Heavy Treads Treads Armored Heavy Treads Wheel Wheel Utility Huge Storage Unit Device X0-1V1's Piety Tracker Storage Huge Storage Unit Processor Advanced Target Analyzer Hackware Relay Coupler [NC] Protection Hardened Heavy Armor Plating Weapon Enhanced Nova Cannon Energy Gun EM Pulse Gun Energy Cannon Enhanced Nova Cannon Ballistic Gun Heavy Assault Rifle Ballistic Cannon Enhanced Hardcell Cannon Launcher Mini Smartbomb Launcher Special Weapon Advanced Remote Datajack Impact Weapon Mace Special Melee Weapon Chaos Jack Build | -11 -10 -10 -9 -9 -9 -8 -8 -8 -7 -7 -7 -7 -7 -7 -7 -7 -6 -6 -5 -5 -5 -5 -4 -4 -4 -4 -4 -4 -4 -4 -4 -3 -3 -2 -2 -1 -1 -1 -1 ------- Run | Yrd Mat Min Mat Min Exi Min Mat Gar Fac Was Fac Gar Fac Gar Fac Gar Fac Gar Fac Gar Fac Gar Fac Was Fac Gar Ext Cet Arc Hub Gar Res Gar Res Gar Acc Gar Acc Com Slots Evolved 18 | . . . 2 . . . 2 . 2 . . . . . . . 2 . 2 . . . 2 . . . . . . . . 2 . 2 . 2 . . . Power 2 | . . . . . . . . . . . . . . . . . 1 . . . . . . . . . . . . . . 1 . . . . . . . Propulsion 3 | . . . 1 . . . 1 . . . . . . . . . . . . . . . 1 . . . . . . . . . . . . . . . . Utility 10 | . . . 1 . . . 1 . 2 . . . . . . . . . 2 . . . 1 . . . . . . . . 1 . 2 . . . . . Weapon 3 | . . . . . . . . . . . . . . . . . 1 . . . . . . . . . . . . . . . . . . 2 . . . Parts Attached 380 | 6 7 6 10 1 . 6 10 9 7 8 2 7 3 10 7 11 4 10 6 7 18 14 9 6 24 11 4 3 1 8 11 8 5 15 10 2 16 24 54 Power 50 | 1 1 1 1 . . 1 . 1 1 2 1 . . 1 . 1 1 1 1 . 1 . . 2 3 2 1 1 . . 2 1 1 2 2 . 6 3 8 Engine 8 | 1 1 1 1 . . 1 . 1 1 . 1 . . . . . . . . . . . . . . . . . . . . . . . . . . . . Core 4 | . . . . . . . . . . . . . . 1 . 1 . . 1 . . . . . 1 . . . . . . . . . . . . . . Reactor 38 | . . . . . . . . . . 2 . . . . . . 1 1 . . 1 . . 2 2 2 1 1 . . 2 1 1 2 2 . 6 3 8 Propulsion 70 | 2 1 2 3 . . 1 4 1 . 4 . . . 4 1 1 1 3 . . 3 . 3 4 5 2 2 2 . . 1 2 . 3 2 . . 5 8 Treads 64 | 2 1 2 1 . . 1 4 1 . 4 . . . 4 1 1 1 3 . . 3 . 3 4 3 2 2 2 . . 1 2 . 3 2 . . 5 6 Leg . | . . . . . . . . . . . . . . . . . . . . . . . . . . . . . . . . . . . . . . . . Wheel 6 | . . . 2 . . . . . . . . . . . . . . . . . . . . . 2 . . . . . . . . . . . . . 2 Hover . | . . . . . . . . . . . . . . . . . . . . . . . . . . . . . . . . . . . . . . . . Flight . | . . . . . . . . . . . . . . . . . . . . . . . . . . . . . . . . . . . . . . . . Utility 186 | 1 2 1 3 . . 2 3 5 4 2 . 6 3 3 5 8 2 5 4 5 11 12 5 . 15 5 1 . 1 7 7 2 3 7 5 1 4 12 24 Device 95 | . . 1 . . . 1 1 2 1 1 . 2 . 2 1 4 . 1 1 2 4 9 2 . 14 2 1 . 1 7 1 1 2 7 1 1 3 6 13 Storage 9 | 1 1 . 1 . . . . . . 1 . . . . 1 . . . . . . . . . . . . . . . . . . . . . . . 4 Processor 5 | . 1 . . . . . . . 1 . . . . . . . . . . . . . . . . . . . . . . . . . . . . . 3 Hackware 63 | . . . . . . . . 1 1 . . 4 2 1 2 4 2 4 2 3 6 3 3 . 1 3 . . . . 5 1 1 . 4 . 1 6 3 Protection 14 | . . . 2 . . 1 2 2 1 . . . 1 . 1 . . . 1 . 1 . . . . . . . . . 1 . . . . . . . 1 Artifact . | . . . . . . . . . . . . . . . . . . . . . . . . . . . . . . . . . . . . . . . . Weapon 74 | 2 3 2 3 1 . 2 3 2 2 . 1 1 . 2 1 1 . 1 1 2 3 2 1 . 1 2 . . . 1 1 3 1 3 1 1 6 4 14 Energy Gun 3 | 1 1 . . . . . . . . . . . . . . . . . . . . . . . . 1 . . . . . . . . . . . . . Energy Cannon 27 | . . . 2 . . 2 1 . 1 . 1 . . 1 1 . . . 1 1 1 . 1 . . . . . . . 1 2 . 2 1 . 4 2 2 Ballistic Gun 8 | 1 2 2 1 . . . 2 . . . . . . . . . . . . . . . . . . . . . . . . . . . . . . . . Ballistic Cannon 11 | . . . . . . . . . . . . . . . . . . . . . . . . . . . . . . . . . . . . . 1 . 10 Launcher 5 | . . . . 1 . . . 1 . . . . . . . 1 . . . 1 . . . . . . . . . . . . . . . . . . 1 Special Weapon 17 | . . . . . . . . . . . . 1 . 1 . . . 1 . . 1 2 . . 1 1 . . . 1 . 1 1 1 . 1 1 2 1 Impact Weapon 1 | . . . . . . . . 1 . . . . . . . . . . . . . . . . . . . . . . . . . . . . . . . Slashing Weapon . | . . . . . . . . . . . . . . . . . . . . . . . . . . . . . . . . . . . . . . . . Piercing Weapon . | . . . . . . . . . . . . . . . . . . . . . . . . . . . . . . . . . . . . . . . . Special Melee Weapon 2 | . . . . . . . . . 1 . . . . . . . . . . . 1 . . . . . . . . . . . . . . . . . . Unidentified Prototypes 22 | . . 1 . . . . 2 . . . 1 . . . 1 . . . 1 . 2 . . . 6 . . 1 . . 1 1 . . . . . . 5 Corrupted Parts 6 | . . . . . . . . . . . . . . . . . . . . . . . . . 2 . . . . . 1 1 . . 1 . . . 1 System Corruption 42 | . . . . . . . . . . . . . . . . . . . . . . . . . 16 . . . . . 4 10 . . 2 . . . 10 Parts Lost 128 | . 2 4 1 . . 4 1 3 1 1 . . . . . 4 . 4 . . 6 6 4 . 11 2 2 . . 1 1 . 5 3 2 . 2 2 56 Power 22 | . . 1 . . . 1 . 1 . . . . . . . . . 1 . . . . . . 3 1 1 . . . . . 1 1 1 . 2 . 8 Propulsion 23 | . 1 1 . . . 1 . 1 1 1 . . . . . . . . . . 1 1 1 . 3 . . . . . . . . . . . . . 11 Utility 59 | . . . . . . 2 1 1 . . . . . . . 4 . 2 . . 4 4 1 . 5 1 1 . . 1 1 . 3 2 . . . 1 25 Weapon 24 | . 1 2 1 . . . . . . . . . . . . . . 1 . . 1 1 2 . . . . . . . . . 1 . 1 . . 1 12 Highest Loss Streak 26 | . 1 2 1 . . 2 1 1 1 1 . . . . . 2 . 2 . . 2 2 2 . 8 1 1 . . 1 1 . 3 1 1 . 2 1 26 To Critical Strikes 3 | . . . . . . . . . . . . . . . . . . . . . 1 . . . 1 1 . . . . . . . . . . . . . Average Backups 20 | 1 6 11 15 18 18 15 16 18 19 19 19 21 20 20 20 21 19 21 21 20 20 22 23 23 22 24 23 23 23 22 24 21 22 22 22 23 23 23 19 Power 1 | . 1 1 2 2 2 2 . . . 1 2 2 2 2 2 2 . . 1 1 1 1 1 1 1 . . . 1 1 1 . . 1 1 1 1 1 4 Propulsion 1 | . . . 2 4 4 3 2 3 3 1 2 2 2 2 1 2 2 2 2 2 2 2 1 2 1 2 2 1 1 1 1 1 2 1 1 1 1 1 1 Utility 12 | . 1 4 5 6 6 5 5 8 11 11 10 12 11 11 11 12 12 14 13 12 12 14 16 15 13 15 16 16 17 16 19 17 17 15 15 17 17 16 7 Weapon 3 | . 2 2 4 5 5 3 7 4 3 3 3 4 5 3 3 3 4 3 5 4 4 3 3 4 4 4 4 3 2 3 3 3 2 3 2 3 3 4 5 Tool/Special . | . . . . . . . . . . . . . . . . . . . . . . . . . . . . . . . . . . . . . . . . Unused Backups 95 | . 1 . 5 1 . . 7 2 . 4 . 6 . 1 1 7 . 2 2 4 3 4 . 2 1 4 . 3 . 1 2 1 6 3 . . 10 4 8 Power 12 | . . . 1 . . . . . . 1 . . . . . 1 . . 1 . . . . 1 . . . . . . . . 1 . . . . 2 4 Propulsion 11 | . . . . . . . 5 . . 1 . . . 1 . . . . . . . . . . . . . 2 . . . . . . . . . . 2 Utility 46 | . . . . 1 . . . 2 . 2 . 5 . . . 3 . 1 . 1 3 3 . 1 1 2 . . . . 2 . 5 2 . . 9 1 2 Weapon 22 | . 1 . 4 . . . 2 . . . . . . . 1 3 . 1 1 2 . 1 . . . 2 . 1 . . . 1 . 1 . . . 1 . Tool/Special 4 | . . . . . . . . . . . . 1 . . . . . . . 1 . . . . . . . . . 1 . . . . . . 1 . . Average Slot Usage (%) 82 | . 89 92 99 100 80 92 89 93 89 84 76 78 76 70 78 80 85 84 82 81 81 86 85 80 74 75 77 78 76 78 77 79 79 81 82 78 83 83 82 Engine 2 | . 14 10 11 11 11 10 9 8 13 11 7 7 7 . . . . . . . . . . . . . . . . . . . . . . . . . . Core 1 | . . . . . . . . . . . . . . 5 7 6 6 5 5 5 2 . . . 1 3 . . . . . . . . . . . . . Reactor 7 | . . . . . . . . . . 2 7 7 7 1 . . 5 6 5 5 8 11 10 10 7 6 10 10 10 10 10 14 13 13 12 12 11 12 11 Treads 17 | . 26 24 24 11 11 30 36 35 27 22 15 15 15 16 23 20 20 20 17 17 16 17 24 17 13 15 15 15 15 15 15 13 14 13 12 12 11 11 13 Device 15 | . . 13 11 11 11 11 10 12 6 . 7 9 1 2 10 15 12 11 13 14 8 18 18 15 19 21 25 26 24 27 24 22 20 26 25 24 23 18 17 Storage 6 | . 14 14 11 11 11 11 9 9 7 7 7 7 7 7 7 6 6 6 5 5 5 5 5 5 4 5 5 5 5 5 5 4 4 4 4 4 3 4 5 Hackware 12 | . . . . . . . . . 9 14 7 12 15 12 8 13 20 18 14 12 19 20 16 21 13 12 10 10 10 8 11 14 14 12 15 16 15 21 17 Protection 2 | . . . 10 11 11 8 7 9 7 7 7 2 6 7 5 1 . . 5 5 4 . . . . . . . . . . . 2 3 . . . . . Energy Cannon 7 | . . . 1 . . 14 17 17 12 13 15 9 7 12 11 11 9 12 8 8 6 8 7 5 4 4 5 5 5 5 4 4 6 4 7 1 11 12 5 Ballistic Gun 2 | . 20 28 20 21 3 . . . . . . . . . . . . . . . . . . . . . . . . . . . . . . . . . . Special Weapon 2 | . . . . . . . . . . . . 4 7 2 3 1 3 . 2 1 4 2 1 . 2 4 5 5 5 5 5 4 1 4 3 6 3 4 1 Peak Build Rating 218 | 6 11 22 31 30 30 31 41 49 55 77 80 81 79 78 79 99 91 102 110 113 122 126 137 139 147 148 148 156 156 158 157 167 170 181 189 188 208 207 218 Average Rating 116 | 4 8 21 27 29 26 24 36 45 50 55 79 77 66 70 76 82 88 94 107 108 109 117 127 133 129 140 144 152 153 151 150 162 162 174 181 185 200 202 194 On Entrance 100 | . 6 11 22 30 30 26 20 39 47 39 77 80 79 65 76 76 82 91 99 110 110 104 114 125 135 142 148 141 156 156 157 148 167 159 180 181 188 202 191 Avg Prop Armor Cover (%) 9 | . . . 8 8 10 . . . . . . . . . . . . . . . . . . . 16 . . . . . . . . . . . 9 . 15 Naked Turns . | . . . . . . . . . . . . . . . . . . . . . . . . . . . . . . . . . . . . . . . . Heaviest Build 227 | 10 31 32 61 56 55 62 77 77 81 130 136 136 131 136 124 137 132 142 161 166 164 155 157 141 157 145 142 147 148 159 158 175 175 178 196 173 211 204 227 Greatest Support 235 | 40 40 40 60 20 20 63 93 93 90 140 140 140 140 170 170 165 175 175 150 150 177 177 185 200 220 220 220 230 230 230 235 235 210 215 215 210 210 215 220 Greatest Overweight (x) 16 | . 1 1 5 2 2 . . 1 1 1 . . . . . . . . 1 1 1 . 1 . 5 . . . . . . . . 1 . . 1 1 16 Average Overweight (x) . | . . . . 2 2 . . . . . . . . . . . . . 1 1 . . . . . . . . . . . . . . . . . . 1 Largest Inventory Capacity 25 | 8 15 15 20 20 20 20 20 20 20 25 25 25 25 25 25 25 25 25 25 25 25 25 25 25 25 25 25 25 25 25 25 25 25 25 25 25 25 25 25 Average Capacity 23 | 7 13 15 17 20 20 20 20 20 20 22 25 25 25 25 25 25 25 25 25 25 25 25 25 25 24 25 25 25 25 25 25 25 25 25 25 25 25 25 24 Most Carried 25 | 2 11 13 20 20 20 19 20 20 20 24 23 25 25 25 25 25 24 25 25 25 25 25 25 25 25 25 25 25 25 25 25 25 25 25 25 25 25 25 25 Average Carried 22 | 1 6 11 17 20 20 16 19 19 19 19 21 24 23 23 23 24 22 24 24 23 23 24 23 24 23 24 24 24 24 24 24 23 24 24 24 24 24 24 19 Final Capacity 25 | 8 15 15 20 20 20 20 20 20 20 25 25 25 25 25 25 25 25 25 25 25 25 25 25 25 25 25 25 25 25 25 25 25 25 25 25 25 25 25 5 Final Carried 25 | 2 11 13 20 20 20 17 20 20 20 20 23 25 23 22 24 25 22 25 25 25 24 25 22 25 25 25 24 25 25 25 25 25 25 25 24 25 25 21 5 Class Distribution -------------------- 46% | Botlord-Mutant 16% | Mutant 14% | Botlord-Tank 7% | Bothacker-Mutant 5% | Commander-Mutant Dominant Class ---------------- Mutant | -10/Materials Mutant | -10/Mines Mutant | -9/Materials Scavenger-Mutant | -9/Mines Mutant | -9/Exiles Mutant | -8/Mines Mutant | -8/Materials Mutant | -8/Garrison Bothacker-Mutant | -7/Factory Bothacker-Mutant | -7/Waste Mutant | -7/Factory Bothacker-Mutant | -7/Garrison Commander-Mutant | -7/Factory Commander-Mutant | -7/Garrison Bothacker-Mutant | -7/Factory Botlord-Mutant | -7/Garrison Botlord-Mutant | -6/Factory Botlord-Mutant | -6/Garrison Botlord-Mutant | -5/Factory Botlord-Mutant | -5/Garrison Botlord-Mutant | -5/Factory Botlord-Mutant | -5/Garrison Botlord-Mutant | -4/Factory Mutant | -4/Waste Botlord-Mutant | -4/Factory Botlord-Mutant | -4/Garrison Botlord-Mutant | -4/Extension Botlord-Mutant | -4/Cetus Botlord-Mutant | -4/Archives Botlord-Mutant | -4/Hub_04(d) Botlord-Mutant | -4/Garrison Botlord-Mutant | -3/Research Scientist-Mutant | -3/Garrison Botlord-Mutant | -2/Research Botlord-Tank | -2/Garrison Botlord-Tank | -1/Access Botlord-Tank | -1/Garrison Botlord-Tank | -1/Access Tank | -1/Command Resources | -11 -10 -10 -9 -9 -9 -8 -8 -8 -7 -7 -7 -7 -7 -7 -7 -7 -6 -6 -5 -5 -5 -5 -4 -4 -4 -4 -4 -4 -4 -4 -4 -3 -3 -2 -2 -1 -1 -1 -1 ----------- Run | Yrd Mat Min Mat Min Exi Min Mat Gar Fac Was Fac Gar Fac Gar Fac Gar Fac Gar Fac Gar Fac Gar Fac Was Fac Gar Ext Cet Arc Hub Gar Res Gar Res Gar Acc Gar Acc Com Matter Collected 21151 | 217 340 647 251 43 . 224 264 800 110 673 20 150 51 181 97 854 . 637 767 675 1120 1323 266 60 916 1073 433 63 51 158 903 489 857 605 386 . 1047 636 3764 Remotely 1271 | . . . . . . . . . . . . . . . . . . . . . . . . . . . . . . . . . . . . . . . 1271 Salvage Created 27592 | . 737 370 264 46 . 244 783 1048 370 1079 34 680 28 871 11 861 60 1031 772 856 1008 943 889 511 1503 1300 701 283 327 1126 942 409 1462 1387 848 . 716 1095 1997 Parts 1213 | . 54 22 17 10 . 15 33 63 20 15 2 30 1 30 . 55 3 34 45 19 52 45 27 5 96 69 24 9 11 51 44 16 68 63 36 . 32 36 61 Haulers Intercepted 3 | . 2 . . . . . . . . . 1 . . . . . . . . . . . . . . . . . . . . . . . . . . . . Recyclers Shooed 15 | . 1 . . . . . 1 . . . . . . . 3 . . . 1 . 3 . 1 . 1 . . . . . . 1 . . . . . 1 2 Parts Field Recycled . | . . . . . . . . . . . . . . . . . . . . . . . . . . . . . . . . . . . . . . . . Retrieved Matter . | . . . . . . . . . . . . . . . . . . . . . . . . . . . . . . . . . . . . . . . . Parts Self-Destructed . | . . . . . . . . . . . . . . . . . . . . . . . . . . . . . . . . . . . . . . . . Prevented . | . . . . . . . . . . . . . . . . . . . . . . . . . . . . . . . . . . . . . . . . Parts Restored . | . . . . . . . . . . . . . . . . . . . . . . . . . . . . . . . . . . . . . . . . Kills | -11 -10 -10 -9 -9 -9 -8 -8 -8 -7 -7 -7 -7 -7 -7 -7 -7 -6 -6 -5 -5 -5 -5 -4 -4 -4 -4 -4 -4 -4 -4 -4 -3 -3 -2 -2 -1 -1 -1 -1 ------- Run | Yrd Mat Min Mat Min Exi Min Mat Gar Fac Was Fac Gar Fac Gar Fac Gar Fac Gar Fac Gar Fac Gar Fac Was Fac Gar Ext Cet Arc Hub Gar Res Gar Res Gar Acc Gar Acc Com Combat Hostiles Destroyed 396 | . 11 8 5 7 . 11 15 26 5 5 . 16 1 5 . 19 1 16 14 14 13 13 10 1 25 24 11 4 1 11 16 5 25 14 10 . 8 5 21 Melee 5 | . . . . . . . . 1 . . . . . . . . . . . . 1 . 1 . . . . . . . 1 . . . 1 . . . . Guns 25 | . 11 8 5 1 . . . . . . . . . . . . . . . . . . . . . . . . . . . . . . . . . . . Cannons 264 | . . . . . . 3 12 20 5 4 . 14 1 5 . 15 1 12 12 10 10 12 7 1 17 18 7 3 1 10 7 1 12 10 5 . 5 5 19 AOE 58 | . . . . 6 . 7 3 4 . 1 . 1 . . . 3 . 3 2 2 . . . . 7 4 . . . . 7 . 8 . . . . . . Classes Destroyed 23 | . 6 4 1 1 . 1 . 3 1 3 . 1 . . . . . 2 . . . . . . . . . . . . . . . . . . . . . Worker 25 | . . . 1 . . . 1 . . . . . . . 1 . . . 3 . 2 . 2 . 3 . . . . 7 . . . 1 . . . 1 3 Builder 22 | . 3 . . . . . . . . . . . . . . . . . 2 . 5 . 1 . 7 . 1 . . 3 . . . . . . . . . Tunneler 1 | . . 1 . . . . . . . . . . . . . . . . . . . . . . . . . . . . . . . . . . . . . Hauler 3 | . 2 . . . . . . . . . 1 . . . . . . . . . . . . . . . . . . . . . . . . . . . . Recycler 14 | . 1 1 . . . . 1 . 1 . . . . . . . . . . . 2 . 1 . 1 . . . . . . . . 1 . . . 4 1 Operator 14 | . 2 . . . . . 1 . . . . . . . . . . . 1 . . . . . 1 . . . 9 . . . . . . . . . . Drone 2 | . . . . . . . . . . 1 . . . . . . . . . . . . . . . . . . . . . . . . . . . 1 . Watcher 4 | . 1 . . . . . . . . . . . . . . . . 1 . . 1 . . . . . . . . . . . . . . . . . 1 Swarmer 69 | . . . . 7 . 7 3 6 . . . . 1 . . 5 . 5 2 2 3 2 1 . 2 8 4 . . . 4 . 6 . 1 . . . . Cutter 18 | . . . . . . . . . . . . 3 . 2 . . . . . . . 1 . . . 3 . . . . 4 . 4 . 1 . . . . Saboteur 1 | . . . . . . . . 1 . . . . . . . . . . . . . . . . . . . . . . . . . . . . . . . Grunt 109 | . 11 4 . . . 3 7 12 1 . . 5 . 1 . 1 . 3 4 8 . 2 8 . 6 4 4 . . 1 8 1 2 7 4 . 1 . 1 Brawler 8 | . . . . . . . . . . . . . . . . . . 1 . . . 1 . . 1 . . . . . 3 . 2 . . . . . . Duelist 12 | . . . . . . 1 1 . 1 . . 3 . . . . . 4 . . . . 1 . . . . . . . . . . 1 . . . . . Sentry 44 | . . 2 5 . . . 4 5 . . . 1 . . . 3 1 . . 3 2 3 1 . . 5 2 . 1 . 1 . 2 . 1 . . . 2 Demolisher 1 | . . 1 . . . . . . . . . . . . . . . . . . . . . . . . . . . . . . . . . . . . . Specialist 14 | . . . . . . . . 2 . . . . . . . 1 . . . . . . . . 2 . . . . 2 . . 4 . . . 1 . 2 Hunter 42 | . . . . . . . . 2 2 . . 1 . . . 3 . 2 4 2 2 . . . 5 . 1 . . 5 . 4 1 3 2 . 1 2 . Programmer 71 | . . . . . . . . . 2 . . 2 . 2 . 6 . 2 4 . 6 5 . . 9 4 . . . 3 . . 3 5 1 . 4 3 10 Heavy 4 | . . . . . . . . . . 1 . . . . . . . . . . . . . . 1 . . . . 1 . . . . . . . 1 . Behemoth 7 | . . . . . . . . . . . . . . . . . . 1 . . . 1 . . . . 1 . . . . . 1 . 1 . 1 . 1 Compactor 5 | . . . . . . . . . . 4 . . . . . . . . . . . . . 1 . . . . . . . . . . . . . . . Cetus Guard 4 | . . . . . . . . . . . . . . . . . . . . . . . . . . . . 4 . . . . . . . . . . . M Guard 2 | . . . . . . . . . . . . . . . . . . . . . . . . . . . . . . . . . . . . . . . 2 Enhanced Grunt 2 | . . . . . . . . . . . . . . . . . . . . . . . . . . . . . . 2 . . . . . . . . . Combat Programmer 2 | . . . . . . . . . . . . . . . . . . . . . . . . . . . . . . . . . . . . . . . 2 Assembled 1 | . . 1 . . . . . . . . . . . . . . . . . . . . . . . . . . . . . . . . . . . . . Savage 2 | . . . . . . . . . . . . . . . . . . . . . . . . . . . . . . 1 . . . . . . 1 . . Butcher 1 | . . . . . . . . . . . . . . . . . . . . . . 1 . . . . . . . . . . . . . . . . . Martyr 2 | . . . . . . . . . . . . 2 . . . . . . . . . . . . . . . . . . . . . . . . . . . Best Kill Streak 11 | . 2 2 1 4 . 7 7 5 2 1 1 3 1 2 1 6 1 5 3 3 8 3 8 1 11 8 2 2 4 5 4 2 9 5 2 . 4 3 4 Combat Bots Only 9 | . 2 2 1 4 . 7 5 5 1 1 . 3 1 2 . 6 1 5 2 3 3 3 3 1 7 8 2 2 1 3 4 2 9 4 2 . 4 2 4 Max Kills in Single Turn 4 | . 2 1 1 3 . 2 2 2 2 1 1 2 1 1 1 1 1 2 2 2 2 1 1 1 4 3 1 1 1 3 3 1 4 1 1 . 1 1 1 Gunslinging 1 | . 1 . . . . . . . . . . . . . . . . . . . . . . . . . . . . . . . . . . . . . . Exploded 4 | . . . . 3 . 2 2 2 . 1 . 1 . . . 1 . 2 1 2 . . . . 2 3 . . . . 3 . 4 . . . . . . Melee 1 | . . . . . . . . 1 . . . . . . . . . . . . 1 . 1 . . . . . . . 1 . . . 1 . . . . Uniques/NPCs Destroyed 1 | . . . . . . . . . . . . . . . . . . . . . . . . . . . . . . . . . . . . . . . 1 MAIN.C Shell (-1/Command) Combat | -11 -10 -10 -9 -9 -9 -8 -8 -8 -7 -7 -7 -7 -7 -7 -7 -7 -6 -6 -5 -5 -5 -5 -4 -4 -4 -4 -4 -4 -4 -4 -4 -3 -3 -2 -2 -1 -1 -1 -1 -------- Run | Yrd Mat Min Mat Min Exi Min Mat Gar Fac Was Fac Gar Fac Gar Fac Gar Fac Gar Fac Gar Fac Gar Fac Was Fac Gar Ext Cet Arc Hub Gar Res Gar Res Gar Acc Gar Acc Com Hostile Shots Fired 2978 | . 85 27 38 12 . 36 47 118 34 12 . 139 3 110 18 146 9 97 115 123 182 75 96 . 207 78 55 9 . 90 51 42 165 74 67 . 134 64 420 Missed 809 | . 32 10 10 4 . 10 15 33 7 1 . 51 1 32 6 42 3 24 28 26 41 25 27 . 71 26 13 3 . 28 15 14 51 22 6 . 36 26 70 Hits 2169 | . 53 17 28 8 . 26 32 85 27 11 . 88 2 78 12 104 6 73 87 97 141 50 69 . 136 52 42 6 . 62 36 28 114 52 61 . 98 38 350 Melee 62 | . . . . . . . . 3 . 11 . 8 . 5 . 2 . 1 . . . 6 2 . . 2 . . . . 3 . 12 . 1 . 5 1 . Projectile 2107 | . 53 17 28 8 . 26 32 82 27 . . 80 2 73 12 102 6 72 87 97 141 44 67 . 136 50 42 6 . 62 33 28 102 52 60 . 93 37 350 AOE 67 | . . 4 . . . . . . . . . 3 . 1 2 . . . . . 2 1 . . 2 7 . . . 1 4 . . . . . 4 . 36 Critical Strikes 109 | . 2 . 2 . . 1 . 5 1 1 . 2 . 4 . 3 . 1 6 2 10 7 . . 6 6 4 1 . . 2 . 8 2 4 . 4 . 25 Actively Blocked 1 | . . . . . . . . . . . . . . . . . . . . . . 1 . . . . . . . . . . . . . . . . . Part Disruptions 22 | . . . . . . . . . . . . . . . . 2 . . . . 1 1 . . 8 . . . . . . . 1 . . . 2 1 6 Damage Taken 40265 | . 706 375 412 68 . 438 537 850 410 137 . 883 49 759 123 603 19 1103 816 1217 2467 901 1255 . 2702 1289 734 217 50 973 754 303 1533 723 1038 . 1868 624 13329 Core 3659 | . 117 143 55 15 . 65 66 59 24 2 . 72 . 50 . 40 3 56 57 70 108 83 134 . 225 102 75 27 . 53 46 21 126 48 13 . 174 50 1480 Absorbed by Shields 9548 | . . . . . . . 67 268 . . . 319 . 188 . 655 21 430 812 841 273 300 203 . 185 104 302 27 . 364 479 287 729 494 635 . 586 347 632 Reduced by Siege Mode 1415 | . . . . . . . . . . . . . . . . . . 60 . 22 218 . . . 66 . . . . . . . . . 169 . 99 . 781 Ignored by Resistances 1567 | . . . . . . . . . . . . . . . . 44 . 32 . . 9 . . . 163 45 . . . 62 . . 484 184 . . 304 92 148 Regen/Repaired (Parts) 3998 | . 104 . . . . . . . . 190 . 86 225 303 275 . 158 131 174 . 604 . . . 238 421 459 53 . 508 . 69 . . . . . . . Core Remaining (%) 85 | 100 . 96 . . . 83 . 78 . . . . . . . 74 . 93 . . . 68 . . . . . . . . 84 . 88 . 95 . . . . Volleys Fired 2464 | . 83 21 28 5 . 20 39 61 17 81 1 71 15 53 14 71 8 74 61 92 88 66 50 5 130 114 94 38 61 100 97 41 99 101 84 . 122 101 258 Largest 4 | . 2 2 2 2 . 2 2 2 2 2 2 2 1 2 2 3 2 2 2 2 2 2 1 1 1 1 1 1 1 1 1 1 2 1 2 . 1 1 4 Hottest 290 | . 63 46 46 56 . 150 123 111 105 105 105 105 75 90 60 90 60 90 60 150 240 240 120 120 120 120 120 120 120 120 120 120 201 120 201 . 120 120 290 Shots Fired 3334 | . 166 42 52 10 . 31 79 116 33 150 2 114 15 100 23 133 9 129 107 135 121 91 50 5 132 114 94 39 60 102 98 43 102 101 85 . 122 102 427 Gun 266 | . 166 42 52 6 . . . . . . . . . . . . . . . . . . . . . . . . . . . . . . . . . . . Cannon 2571 | . . . . . . 25 77 111 33 149 2 87 2 96 15 111 2 109 92 91 87 68 44 5 97 99 90 39 60 97 60 31 71 86 62 . 95 64 414 Launcher 49 | . . . . 4 . 6 2 5 . 1 . . . . . 3 . 2 3 1 . . . . 13 1 . . . . 3 . 5 . . . . . . Special 448 | . . . . . . . . . . . . 27 13 4 8 19 7 18 12 43 34 23 6 . 22 14 4 . . 5 35 12 26 15 23 . 27 38 13 Kinetic 446 | . 102 42 52 6 . . . . . . . . . . . . . . . . . . . . . . . . . . . . . . . . . . 244 Thermal 2209 | . 39 . . . . 25 77 111 33 149 2 87 2 96 15 111 2 109 92 91 87 68 23 5 97 99 90 39 60 97 60 7 30 47 51 . 80 58 170 Explosive 49 | . . . . 4 . 6 2 5 . 1 . . . . . 3 . 2 3 1 . . . . 13 1 . . . . 3 . 5 . . . . . . Electromagnetic 182 | . 25 . . . . . . . . . . . . . . . . . . . . . 21 . . . . . . . . 24 41 39 11 . 15 6 . Robot Hit Streak 35 | . 15 16 8 1 . 12 15 9 11 14 1 23 10 29 4 20 4 16 13 20 17 8 12 3 22 17 6 4 8 12 26 6 18 13 22 . 17 20 35 Robot Miss Streak 6 | . 3 1 4 3 . 2 4 3 3 4 . 6 2 3 1 2 1 2 2 3 3 5 4 1 3 3 3 2 4 4 4 5 3 3 3 . 3 2 5 Penetration Max . | . . . . . . . . . . . . . . . . . . . . . . . . . . . . . . . . . . . . . . . . Secondary Targets 1 | . 1 . . . . . . . . . . . . . . . . . . . . . . . . . . . . . . . . . . . . . . Max Gunslinging Chain 1 | . 1 . . . . . . . . . . . . . . . . . . . . . . . . . . . . . . . . . . . . . . Capacitor 1125 | . . . . . . . . . . . . . . . . . . . . . . . 44 5 95 99 90 39 60 64 60 31 69 86 60 . 95 64 164 Shots Hit Robots 2261 | . 118 35 32 2 . 25 48 70 30 124 1 81 11 69 11 90 7 84 77 98 71 45 36 4 102 73 53 15 40 48 71 26 70 67 65 . 87 72 303 Core Hits 789 | . 41 19 10 8 . 13 26 39 10 24 1 24 1 31 2 30 2 29 28 21 21 19 19 2 71 30 18 8 11 29 25 4 28 27 12 . 14 11 81 Critical Kills 30 | . . . . . . . . . . . . . . . . . . . . 1 2 2 1 . 1 3 4 1 1 4 1 . 2 . 3 . 2 . 2 Critical Parts Destroyed 2 | . 1 . . . . 1 . . . . . . . . . . . . . . . . . . . . . . . . . . . . . . . . . Critical Strikes 45 | . 1 . . . . 1 . . . . . . . . . . . . . 2 2 2 3 . 1 3 4 1 1 4 1 . 5 . 3 . 2 . 9 Meltdown 30 | . . . . . . . . . . . . . . . . . . . . 1 2 2 1 . 1 3 4 1 1 4 1 . 2 . 3 . 2 . 2 Destroy 1 | . 1 . . . . . . . . . . . . . . . . . . . . . . . . . . . . . . . . . . . . . . Blast 8 | . . . . . . . . . . . . . . . . . . . . 1 . . . . . . . . . . . . . . . . . . 7 Corrupt 5 | . . . . . . . . . . . . . . . . . . . . . . . 2 . . . . . . . . . 3 . . . . . . Smash 1 | . . . . . . 1 . . . . . . . . . . . . . . . . . . . . . . . . . . . . . . . . . Melee Attacks 39 | . . . . . . 1 . 4 5 7 . . . . . . . . . . 4 1 4 . 13 . . . . . . . . . . . . . . Impact 5 | . . . . . . 1 . 4 . . . . . . . . . . . . . . . . . . . . . . . . . . . . . . . Slashing . | . . . . . . . . . . . . . . . . . . . . . . . . . . . . . . . . . . . . . . . . Piercing 22 | . . . . . . . . . . . . . . . . . . . . . 4 1 4 . 13 . . . . . . . . . . . . . . Sneak Attacks 6 | . . . . . . . . . 3 . . . . . . . . . . . . . . . 3 . . . . . . . . . . . . . . Combat Hostiles 1 | . . . . . . . . . . . . . . . . . . . . . . . . . 1 . . . . . . . . . . . . . . Follow-up Attacks . | . . . . . . . . . . . . . . . . . . . . . . . . . . . . . . . . . . . . . . . . Damage Inflicted 76264 | . 1452 541 508 300 . 1018 1434 2315 701 3569 25 1543 112 2047 282 2639 90 2303 2459 2027 2119 1517 1610 165 5336 3321 2373 827 1849 3115 2356 812 2844 2721 2158 . 2925 2030 12821 Guns 2349 | . 1334 502 500 13 . . . . . . . . . . . . . . . . . . . . . . . . . . . . . . . . . . . Cannons 63813 | . . . . . . 500 1320 1822 701 3502 25 1525 50 2047 165 2275 55 2056 2009 1766 1740 1515 1259 165 2810 2894 2298 827 1849 2355 1783 709 1792 2470 2119 . 2918 1873 12619 Explosions 8175 | . 76 . . 282 . 488 75 463 . 67 . . . . . 329 . 247 386 245 . . 267 . 2474 393 . . . 466 553 . 1052 213 . . . 99 . Melee 59 | . . . . . . 25 . . . . . . . . . . . . . . 7 2 2 . 23 . . . . . . . . . . . . . . Ramming 1868 | . 42 39 8 5 . 5 39 30 . . . 18 62 . 117 35 35 . 64 16 372 . 82 . 29 34 75 . . 294 20 103 . 38 39 . 7 58 202 Kinetic 8274 | . 805 502 500 13 . . . . . . . . . . . . . . . 68 . . . . . . . . . . . . . . . . . . 6386 Thermal 54627 | . 379 . . 94 . 500 1320 1822 701 3502 25 1525 50 2047 165 2275 55 2056 2009 1698 1740 1515 954 165 2813 2894 2298 827 1849 2355 1783 134 973 1734 1920 . 2506 1711 6233 Explosive 7033 | . . . . 188 . 488 75 463 . 67 . . . . . 329 . 247 386 245 . . . . 2471 393 . . . . 553 . 1052 76 . . . . . Electromagnetic 4403 | . 226 . . . . . . . . . . . . . . . . . . . . . 572 . . . . . . 466 . 575 819 873 199 . 412 261 . Impact 25 | . . . . . . 25 . . . . . . . . . . . . . . . . . . . . . . . . . . . . . . . . . Slashing . | . . . . . . . . . . . . . . . . . . . . . . . . . . . . . . . . . . . . . . . . Piercing 34 | . . . . . . . . . . . . . . . . . . . . . 7 2 2 . 23 . . . . . . . . . . . . . . Highest Corruption 36 | . . . 2 2 2 2 1 . . . . 4 . 1 1 2 . . 7 . 10 36 . . 25 32 32 14 14 8 5 24 24 1 2 . 1 7 33 Average Corruption 11 | . . . 2 2 2 2 1 . . . . 2 . 1 1 1 . . 4 . 4 30 . . 13 28 22 14 10 4 1 9 7 1 2 . 1 3 19 Corruption Purged 40 | . . . . . . . . . . . . . . . . 2 . . 7 . . . . . . . . . 6 8 . . . . . . . 7 10 Corruption Blocked . | . . . . . . . . . . . . . . . . . . . . . . . . . . . . . . . . . . . . . . . . Effects 673 | . . . 4 5 3 3 2 . . . . 5 . 6 9 12 . . 18 . 14 81 . . 45 87 83 23 20 19 7 23 39 . 4 . 2 28 131 Message Errors 168 | . . . . 1 1 . . . . . . 2 . . 1 3 . . 5 . 3 15 . . 17 15 22 8 5 3 1 5 9 . 1 . 1 14 36 Matter Fused 156 | . . . . 2 1 1 1 . . . . . . 3 2 4 . . 5 . 5 22 . . 9 25 15 4 4 3 2 6 10 . 1 . . 7 24 Heat Flow Errors 72 | . . . 1 1 . 1 . . . . . . . . 3 1 . . 1 . 2 9 . . 4 9 9 3 1 3 . 2 5 . 1 . . 1 15 Energy Discharges 75 | . . . 1 1 . . . . . . . 1 . 1 . 2 . . 1 . 2 10 . . 2 9 11 . 2 3 2 4 5 . 1 . 1 2 14 Parts Rejected 9 | . . . . . . . . . . . . . . . . . . . . . . 3 . . . . 2 . . 1 . . 1 . . . . . 2 Parts Fused 4 | . . . . . . . . . . . . . . . . . . . . . . 1 . . . . 1 . . 1 . . . . . . . . 1 Data Loss (minor) 68 | . . . 1 . . 1 . . . . . 1 . 1 1 2 . . 2 . 1 12 . . 5 11 7 4 3 2 . 1 4 . . . . 1 8 Data Loss (major) 32 | . . . 1 . 1 . . . . . . . . 1 . . . . 2 . . 4 . . 1 5 6 1 . . . 3 3 . . . . . 4 Misfires 33 | . . . . . . . 1 . . . . 1 . . 2 . . . 2 . . 2 . . 4 4 4 1 2 1 1 2 2 . . . . 2 2 Alerts 11 | . . . . . . . . . . . . . . . . . . . . . 1 1 . . . 1 2 1 . 1 1 . . . . . . . 3 Misdirections 10 | . . . . . . . . . . . . . . . . . . . . . . 1 . . 1 3 . 1 . . . . . . . . . . 4 Weapon Failures 35 | . . . . . . . . . . . . . . . . . . . . . . 1 . . 2 5 4 . 3 1 . . . . . . . 1 18 Overload Shots 6 | . . . . . . . 2 . . . . . . 1 . . . 1 . 2 . . . . . . . . . . . . . . . . . . . Effects 1 | . . . . . . . . . . . . . . 1 . . . . . . . . . . . . . . . . . . . . . . . . . Heat Surge 1 | . . . . . . . . . . . . . . 1 . . . . . . . . . . . . . . . . . . . . . . . . . Overflow Damage 2491 | . . . . 38 . 96 . 28 25 11 . 13 . 35 33 68 6 42 134 38 149 80 55 . 71 167 34 . 171 101 62 13 200 54 7 . 165 255 340 Projectiles 1853 | . . . . . . . . 28 25 9 . 13 . 35 . 52 . 42 60 38 112 80 48 . 35 167 34 . 171 84 12 13 69 54 7 . 165 210 290 Explosions 455 | . . . . 38 . 71 . . . 2 . . . . . 16 . . 74 . . . . . 36 . . . . . 43 . 131 . . . . 44 . Melee 183 | . . . . . . 25 . . . . . . . . 33 . 6 . . . 37 . 7 . . . . . . 17 7 . . . . . . 1 50 Knockbacks 37 | . 1 1 . . . . . . . . . . 1 . 1 . . . . . 1 . 3 . . . 1 . . 2 . 1 . . . . . 1 24 Impact 14 | . 1 1 . . . . . . . . . . 1 . 1 . . . . . 1 . 3 . . . 1 . . 2 . 1 . . . . . 1 1 Kinetic 23 | . . . . . . . . . . . . . . . . . . . . . . . . . . . . . . . . . . . . . . . 23 Secondary . | . . . . . . . . . . . . . . . . . . . . . . . . . . . . . . . . . . . . . . . . Self-Inflicted Damage 931 | . . . . 9 . 96 . 33 . 51 . . . . . . . 12 . 41 . . . . 186 53 . . . 97 40 . 118 195 . . . . . Shots 19 | . . . . 1 . 3 . 1 . 1 . . . . . . . 1 . 1 . . . . 4 1 . . . 1 1 . 2 2 . . . . . Rammed 119 | 1 7 7 . 1 . 1 2 5 . . . 1 3 . 6 3 3 . 4 1 21 . 5 . 3 4 6 . . 14 . 5 . 4 1 . 1 3 7 Targets Rammed 133 | 1 9 8 1 1 . 1 2 5 . . . 1 3 . 6 3 3 . 6 1 23 . 6 . 3 4 7 . . 16 1 5 . 4 2 . 1 3 7 Kicked . | . . . . . . . . . . . . . . . . . . . . . . . . . . . . . . . . . . . . . . . . Crushed 14 | . 2 1 1 . . . . . . . . . . . . . . . 2 . 2 . 1 . . . 1 . . 2 1 . . . 1 . . . . Highest Temperature 644 | . 162 15 99 86 . 276 78 78 54 144 21 181 36 216 240 134 . 20 180 365 357 368 415 268 394 384 329 228 248 341 349 180 405 319 252 . 371 195 644 Average Temperature 90 | . 49 5 16 48 . 128 25 16 19 40 14 47 20 129 103 34 . 15 43 84 126 98 178 127 130 120 84 76 89 91 102 45 111 81 82 . 122 90 164 Received Heat Transfer 4566 | . 429 74 171 . . 180 207 327 72 . . 189 . 50 18 92 2 104 108 331 166 37 330 . 135 121 106 27 . 32 42 4 91 24 108 . 101 47 841 Effects 26 | . . . . . . 3 . . . . . . . . . . . . . . 2 . 2 . 3 1 . . . . . . 1 . . . 3 . 11 Shutdowns 6 | . . . . . . . . . . . . . . . . . . . . . . . . . 1 . . . . . . . 1 . . . 2 . 2 Energy Bleed 4 | . . . . . . . . . . . . . . . . . . . . . . . 2 . . . . . . . . . . . . . . . 2 Interference 7 | . . . . . . 3 . . . . . . . . . . . . . . 2 . . . 2 . . . . . . . . . . . . . . Matter Decay 2 | . . . . . . . . . . . . . . . . . . . . . . . . . . . . . . . . . . . . . . . 2 Short Circuit 2 | . . . . . . . . . . . . . . . . . . . . . . . . . . 1 . . . . . . . . . . 1 . . Damage (major) 4 | . . . . . . . . . . . . . . . . . . . . . . . . . . . . . . . . . . . . . . . 4 Damage (core) 1 | . . . . . . . . . . . . . . . . . . . . . . . . . . . . . . . . . . . . . . . 1 Siege Activations 22 | . . . . . . . . . . . . 2 . . . . . 1 1 1 1 1 . . 3 . . . . . . . 2 1 3 . 1 . 5 Total Turns 338 | . . . . . . . . . . . . 21 . . . . . 24 3 19 53 2 . . 19 . . . . . . . 36 1 46 . 18 . 96 Longest Duration 53 | . . . . . . . . . . . . 13 . . . . . 24 3 19 53 2 . . 10 . . . . . . . 34 1 30 . 18 . 38 Martial Activations . | . . . . . . . . . . . . . . . . . . . . . . . . . . . . . . . . . . . . . . . . Shielding Activations . | . . . . . . . . . . . . . . . . . . . . . . . . . . . . . . . . . . . . . . . . Robots Disrupted . | . . . . . . . . . . . . . . . . . . . . . . . . . . . . . . . . . . . . . . . . Combat Hostiles . | . . . . . . . . . . . . . . . . . . . . . . . . . . . . . . . . . . . . . . . . Robots Corrupted 27 | . . . . . . 1 . . . . . . . . 1 . . . . . 2 . 2 . . . . . . 2 . 4 3 4 2 . 2 2 2 Combat Hostiles 15 | . . . . . . 1 . . . . . . . . . . . . . . . . . . . . . . . . . 4 3 4 2 . 1 . . Parts Fried 44 | . 1 . . . . . . . . . . . . . 2 . . . . . 4 . 9 . . . . . . 5 . 3 8 6 2 . 1 1 2 Impact Corruptions 14 | . . . . . . 2 . . . . . . . . 1 . 1 . . . 2 . 1 . . . . . . 2 1 . . . . . . 1 3 Robots Melted 37 | . . . . . . . . . . . . 2 . . . 1 . 1 . 3 2 2 1 . 1 3 5 1 1 4 1 . 2 . 3 . 2 . 2 Combat Hostiles 27 | . . . . . . . . . . . . 1 . . . 1 . 1 . 2 2 1 1 . 1 2 4 1 . 1 1 . 2 . 2 . 2 . 2 Parts Melted 135 | . 1 . . 1 . 1 2 2 1 . . 6 . 3 . 2 . 7 4 11 10 7 4 . 5 9 12 2 3 6 2 . 8 6 4 . 3 3 10 Heat Transferred 53707 | . 800 . . 150 . 740 1887 2590 962 4995 37 2146 74 2701 222 2731 74 2701 2553 2220 1702 1215 792 148 2360 2405 1941 684 1628 1998 1516 111 740 1320 1534 . 1822 1294 2914 Parts Sabotaged 3 | . . . . . . . . 3 . . . . . . . . . . . . . . . . . . . . . . . . . . . . . . . Parts Stolen . | . . . . . . . . . . . . . . . . . . . . . . . . . . . . . . . . . . . . . . . . Parts Stripped 7 | . . . . . . . . . . . . . . . . . . . . . . . 7 . . . . . . . . . . . . . . . . Power Chain Reactions 3 | . 1 . . . . . . . . . . . . . . . . . . . . . 1 . . . . . . . . . . 1 . . . . . Alert | -11 -10 -10 -9 -9 -9 -8 -8 -8 -7 -7 -7 -7 -7 -7 -7 -7 -6 -6 -5 -5 -5 -5 -4 -4 -4 -4 -4 -4 -4 -4 -4 -3 -3 -2 -2 -1 -1 -1 -1 ------- Run | Yrd Mat Min Mat Min Exi Min Mat Gar Fac Was Fac Gar Fac Gar Fac Gar Fac Gar Fac Gar Fac Gar Fac Was Fac Gar Ext Cet Arc Hub Gar Res Gar Res Gar Acc Gar Acc Com Maximum Alert Level 4 | . . . . 1 . 1 1 4 2 1 1 3 2 4 3 3 2 2 1 3 1 4 2 . . 3 3 2 1 3 4 3 2 1 2 1 1 . . Low Security (%) 51 | 100 100 100 100 93 . 61 74 6 . 97 86 4 52 14 18 12 . . 93 34 83 20 . 100 100 15 . . 82 62 . 78 27 32 26 54 46 100 100 Level 1 16 | . . . . 6 . 38 25 10 . 2 13 10 4 13 . 10 78 62 6 31 16 17 20 . . 10 21 62 17 11 . 5 31 67 41 45 53 . . Level 2 21 | . . . . . . . . 39 100 . . 36 43 16 78 59 21 37 . 28 . 19 79 . . 61 71 37 . 13 12 . 40 . 32 . . . . Level 3 8 | . . . . . . . . 34 . . . 48 . 39 2 18 . . . 6 . 37 . . . 13 6 . . 12 31 15 . . . . . . . Level 4 2 | . . . . . . . . 9 . . . . . 16 . . . . . . . 3 . . . . . . . . 55 . . . . . . . . Level 5 . | . . . . . . . . . . . . . . . . . . . . . . . . . . . . . . . . . . . . . . . . High Security . | . . . . . . . . . . . . . . . . . . . . . . . . . . . . . . . . . . . . . . . . Max Security . | . . . . . . . . . . . . . . . . . . . . . . . . . . . . . . . . . . . . . . . . Sterilizations 1 | . . . 1 . . . . . . . . . . . . . . . . . . . . . . . . . . . . . . . . . . . . Peak Influence 1439 | . 107 76 34 217 . 214 259 1298 681 204 224 975 681 1351 709 854 448 560 294 702 370 1100 577 134 108 748 829 459 217 934 1439 809 616 346 502 300 312 198 102 Initial 809 | . . 11 9 . . . 75 148 681 204 . 86 511 135 709 49 448 219 294 7 368 46 577 134 . 63 392 455 129 28 651 809 . 346 24 300 70 187 . Average 297 | . 24 12 5 131 . 184 94 672 619 49 112 672 326 733 502 530 350 401 38 316 105 584 501 34 45 495 506 382 160 249 1034 190 330 214 308 184 212 49 23 Influence Increases 22544 | . 426 186 151 325 . 304 526 1180 182 34 234 1109 331 1276 466 1075 88 581 362 775 516 1314 211 . 655 865 1203 247 178 2142 1058 129 1055 433 598 18 1022 559 730 Destroy 0b10 Robot/C 9609 | . 220 140 100 140 . 220 320 560 100 20 100 570 120 465 210 540 60 276 216 336 228 612 144 . 324 408 408 96 48 324 456 60 420 228 276 . 408 192 264 Destroy 0b10 Robot/NC 388 | . 45 10 5 . . . 15 . 5 . 5 . . 24 20 4 . 6 18 3 36 . 12 . 36 6 15 . 27 51 . . . 9 . . . 15 21 Destroy Leader 1214 | . 76 30 40 20 . 40 70 20 30 . 12 30 40 56 56 56 16 22 36 24 58 24 24 . 66 18 24 . . 84 24 18 36 30 30 . 30 12 62 Allied During Kill 4130 | . . . . . . . 1 16 . . 117 152 159 545 152 110 12 16 19 46 47 379 4 . 8 120 446 96 75 392 312 4 152 48 152 . 292 190 68 Trap Triggered on 0b10 10 | . . . . . . . 10 . . . . . . . . . . . . . . . . . . . . . . . . . . . . . . . . Successful Hack 342 | . 7 6 5 . . . 23 28 . . . . 8 9 3 . . . 10 18 25 10 3 . 16 9 . . . 29 9 37 14 . 18 . 9 . 46 Select Force Hacks 72 | . . . . . . . . . . . . . . . . . . . 18 . 18 . . . . . . . . 18 . . . . . 18 . . . Disable Machine 732 | . . . . 120 . . 45 . . . . . . 24 12 36 . 9 9 9 18 9 . . 54 . 81 9 18 162 27 . 9 36 . . 9 27 9 Anti-Garrison Action 2653 | . . . . . . . . 400 . . . 163 . 151 . 303 . 226 . 300 . 210 . . . 270 . . . . 150 . 180 . 90 . 210 . . Destroy Structure 1922 | . 3 . 1 45 . 44 27 36 2 14 . 98 4 2 13 14 . 14 36 30 50 34 24 . 106 34 76 46 10 480 53 10 118 64 32 . 28 114 260 Partial Spotted 18 | . . . . . . . . . . . . . . . . . . . . . 9 9 . . . . . . . . . . . . . . . . . Lose Combat Pursuer 699 | . 75 . . . . . 15 120 45 . . 96 . . . 12 . 12 . 9 27 27 . . 45 . . . . . 27 . 126 18 . . 36 9 . Miscellaneous 755 | . . . . . . . . . . . . . . . . . . . . . . . . . . . 153 . . 602 . . . . . . . . . Influence Decreases 22544 | . 396 192 175 266 59 110 492 110 897 617 110 258 1112 119 1747 291 628 335 911 84 1152 280 927 384 564 208 1138 736 421 1292 550 1568 439 1016 129 432 798 871 730 Entered New Map 6934 | . . 19 15 . 59 . 119 80 617 379 . 38 464 59 642 21 406 95 266 4 334 20 523 250 . 28 356 358 195 53 280 630 . 270 9 202 18 125 . Time Decay 7954 | . 386 153 150 266 . 70 343 . 270 228 110 . 198 . 440 . 222 . 332 . 497 . 214 134 394 . 562 238 206 560 . 378 . 386 . 230 . 544 443 Lost Part 850 | . 10 20 10 . . 40 10 30 10 10 . . . . . 40 . 40 . . 60 60 40 . 110 20 20 . . 10 10 . 50 30 20 . 20 20 160 Lost Ally 4283 | . . . . . . . 20 . . . . 220 . 60 140 230 . 200 50 80 261 200 . . 60 160 200 140 20 294 260 60 389 70 100 . 760 182 127 Purge Threat 2523 | . . . . . . . . . . . . . 450 . 525 . . . 263 . . . 150 . . . . . . 375 . 500 . 260 . . . . . Squads Dispatched 92 | . 3 1 . 1 . 1 1 . 2 . 2 . 3 . 5 . . . 6 . 8 . 2 . 8 . 2 . . 7 . 11 . 5 . 2 . 13 9 Investigation 21 | . 1 1 . 1 . . 1 . . . . . 1 . . . . . 2 . 2 . . . 2 . 2 . . 1 . 3 . 1 . 1 . 1 1 Extermination 27 | . . . . . . . . . 1 . 1 . . . 2 . . . 2 . 2 . . . 2 . . . . 3 . 1 . 2 . 1 . 4 6 Reinforcement 29 | . 2 . . . . 1 . . 1 . 1 . 1 . 2 . . . 2 . 1 . 2 . 3 . . . . 3 . 4 . 2 . . . 2 2 Assault 1 | . . . . . . . . . . . . . . . 1 . . . . . . . . . . . . . . . . . . . . . . . . Garrison 14 | . . . . . . . . . . . . . 1 . . . . . . . 3 . . . 1 . . . . . . 3 . . . . . 6 . Intercept . | . . . . . . . . . . . . . . . . . . . . . . . . . . . . . . . . . . . . . . . . Searches Triggered . | . . . . . . . . . . . . . . . . . . . . . . . . . . . . . . . . . . . . . . . . Construction Impeded 3 | . . . . . . 1 . . . . . . . . 1 . . . . . . . 1 . . . . . . . . . . . . . . . . Haulers Reinforced 7 | . . . . . . . . . . . 1 . . . . . . . . . 1 . 1 . 1 . . . . . . 2 . . . . . 1 . Active Scanning Responses . | . . . . . . . . . . . . . . . . . . . . . . . . . . . . . . . . . . . . . . . . Cargo Convoy Interrupts 2 | . . . . . . . . . . . . . . . . . . . . . 1 . . . 1 . . . . . . . . . . . . . . Alert ID Control Effect 56 | . . . . . . . . . . . . . . . . . . . . . . . . . . . . . . . . . . . . . 5 37 14 Stealth | -11 -10 -10 -9 -9 -9 -8 -8 -8 -7 -7 -7 -7 -7 -7 -7 -7 -6 -6 -5 -5 -5 -5 -4 -4 -4 -4 -4 -4 -4 -4 -4 -3 -3 -2 -2 -1 -1 -1 -1 --------- Run | Yrd Mat Min Mat Min Exi Min Mat Gar Fac Was Fac Gar Fac Gar Fac Gar Fac Gar Fac Gar Fac Gar Fac Was Fac Gar Ext Cet Arc Hub Gar Res Gar Res Gar Acc Gar Acc Com Distress Signals 27 | . 1 . . . . . 1 1 . . . . . . . 5 . . . . 2 . 1 . . . . 1 . 1 . 7 . . 1 . . 5 1 Communications Jammed 432 | . . . . . . . . . . . . . . . . 68 . . . . 51 . 6 . 31 . 138 . . 105 . . . 27 . . . 6 . Distress Signals 411 | . . . . . . . . . . . . . . . . 68 . . . . 51 . 6 . 27 . 138 . . 89 . . . 26 . . . 6 . Times Spotted 1142 | . 21 8 8 7 . 13 24 44 12 7 6 44 6 26 19 56 9 31 31 44 46 64 26 1 48 37 33 9 20 35 46 14 53 40 43 . 74 82 55 Peak Tracking Total 24 | . 3 2 2 4 . 5 5 7 3 2 4 4 3 4 7 6 3 7 3 8 7 8 6 1 12 7 3 5 1 3 9 3 24 5 8 . 13 7 8 Tactical Retreats 43 | . 4 . . . . . 1 6 3 . . 5 . . . 1 . 1 . 1 2 2 . . 4 . . . . . 1 . 7 2 . . 2 1 . Traps | -11 -10 -10 -9 -9 -9 -8 -8 -8 -7 -7 -7 -7 -7 -7 -7 -7 -6 -6 -5 -5 -5 -5 -4 -4 -4 -4 -4 -4 -4 -4 -4 -3 -3 -2 -2 -1 -1 -1 -1 ------- Run | Yrd Mat Min Mat Min Exi Min Mat Gar Fac Was Fac Gar Fac Gar Fac Gar Fac Gar Fac Gar Fac Gar Fac Was Fac Gar Ext Cet Arc Hub Gar Res Gar Res Gar Acc Gar Acc Com Traps Triggered 25 | . 3 . . . . . . 3 1 . . 3 . . 1 1 . . . 2 1 1 1 . . . 1 . . 2 . . . 1 . . 2 1 1 Indirectly 3 | . . . . . . . . . . . . . . . . . . . . . . . . . . . . . . 2 . . . . . . . 1 . Trap Hack Attempts 3 | . . . . . . . . . 3 . . . . . . . . . . . . . . . . . . . . . . . . . . . . . . Triggered . | . . . . . . . . . . . . . . . . . . . . . . . . . . . . . . . . . . . . . . . . Disarmed 6 | . . . . . . . . . . . . . . . . . . . . . . . . . . . . . . 6 . . . . . . . . . Reprogrammed 1 | . . . . . . . . . 1 . . . . . . . . . . . . . . . . . . . . . . . . . . . . . . Reused 1 | . . . . . . . 1 . . . . . . . . . . . . . . . . . . . . . . . . . . . . . . . . Traps Extracted . | . . . . . . . . . . . . . . . . . . . . . . . . . . . . . . . . . . . . . . . . Installed 1 | . . . . . . . 1 . . . . . . . . . . . . . . . . . . . . . . . . . . . . . . . . Triggered 1 | . . . . . . . 1 . . . . . . . . . . . . . . . . . . . . . . . . . . . . . . . . Most Traps Carried 1 | . . . . . . . 1 . . . . . . . . . . . . . 1 1 . . . . . . . . . . . . . . . . . Machines | -11 -10 -10 -9 -9 -9 -8 -8 -8 -7 -7 -7 -7 -7 -7 -7 -7 -6 -6 -5 -5 -5 -5 -4 -4 -4 -4 -4 -4 -4 -4 -4 -3 -3 -2 -2 -1 -1 -1 -1 ---------- Run | Yrd Mat Min Mat Min Exi Min Mat Gar Fac Was Fac Gar Fac Gar Fac Gar Fac Gar Fac Gar Fac Gar Fac Was Fac Gar Ext Cet Arc Hub Gar Res Gar Res Gar Acc Gar Acc Com Machines Disabled 128 | . . . . 8 . . 3 4 . . . 2 . 4 1 9 . 6 1 7 2 7 . . 6 8 9 1 2 18 8 . 5 4 3 . 6 3 1 Max in Single Turn 10 | . . . . 8 . . 1 1 . . . 1 . 1 . 1 . 1 1 1 1 1 . . 4 1 1 1 . 10 2 . 1 2 1 . 1 1 1 Garrison Access 2 | . . . . . . . . . . . . . . . . . . . . . 1 . . . 1 . . . . . . . . . . . . . . Garrison Relay 53 | . . . . . . . . 4 . . . 2 . 3 . 6 . 5 . 5 . 5 . . . 6 . . . . 5 . 4 . 3 . 5 . . Phase Generator 7 | . . . . . . . . . . . . 1 . 1 . 1 . . . 1 . . . . . . . . . . 1 . 1 . . . 1 . . Network Hub 2 | . . . . . . . . . . . . . . . . . . . . . . . . . . . . . . 2 . . . . . . . . . Energy Cycler 1 | . . . . . . . . . . . . . . . . . . . . . . . . . . . . . . . . . . . . . . 1 . Machines Repaired . | . . . . . . . . . . . . . . . . . . . . . . . . . . . . . . . . . . . . . . . . Machines Dismantled . | . . . . . . . . . . . . . . . . . . . . . . . . . . . . . . . . . . . . . . . . Machines Sabotaged . | . . . . . . . . . . . . . . . . . . . . . . . . . . . . . . . . . . . . . . . . Overloaded Fab Kills . | . . . . . . . . . . . . . . . . . . . . . . . . . . . . . . . . . . . . . . . . Hacking | -11 -10 -10 -9 -9 -9 -8 -8 -8 -7 -7 -7 -7 -7 -7 -7 -7 -6 -6 -5 -5 -5 -5 -4 -4 -4 -4 -4 -4 -4 -4 -4 -3 -3 -2 -2 -1 -1 -1 -1 --------- Run | Yrd Mat Min Mat Min Exi Min Mat Gar Fac Was Fac Gar Fac Gar Fac Gar Fac Gar Fac Gar Fac Gar Fac Was Fac Gar Ext Cet Arc Hub Gar Res Gar Res Gar Acc Gar Acc Com Machines Accessed 86 | . 2 1 1 . . . 6 3 1 . 1 2 2 1 4 . 3 2 2 2 8 2 1 . 8 2 3 . . 10 2 6 2 1 3 1 1 . 3 Terminals 54 | . 1 1 1 . . . 3 3 . . . 2 . 1 2 . . 2 1 2 3 2 1 . 3 2 3 . . 9 2 2 2 . 3 . 1 . 2 Fabricators 4 | . . . . . . . . . . . . . . . . . 1 . . . 1 . . . 1 . . . . . . 1 . . . . . . . Repair Stations 6 | . 1 . . . . . . . . . . . 1 . 1 . . . . . 1 . . . 1 . . . . . . . . . . . . . 1 Recycling Units . | . . . . . . . . . . . . . . . . . . . . . . . . . . . . . . . . . . . . . . . . Scanalyzers 8 | . . . . . . . 2 . 1 . . . . . . . 1 . . . 1 . . . 1 . . . . . . 2 . . . . . . . Garrison Access 14 | . . . . . . . 1 . . . 1 . 1 . 1 . 1 . 1 . 2 . . . 2 . . . . 1 . 1 . 1 . 1 . . . Total Hacks 212 | . 3 5 6 . . . 21 5 2 . 2 4 5 2 7 . 7 5 6 6 20 3 5 . 21 6 4 . . 21 2 20 4 2 5 3 1 . 9 Successful 107 | . 3 1 2 . . . 12 2 . . 2 1 3 1 5 . 7 . 5 2 10 1 2 . 12 1 . . . 10 1 9 2 2 3 3 1 . 4 Failed 104 | . . 3 4 . . . 9 3 2 . . 3 2 1 2 . . 5 1 4 10 2 3 . 9 5 4 . . 11 1 11 2 . 2 . . . 5 Catastrophic 22 | . . . . . . . . 2 1 . . . . . 1 . . . . 1 1 . . . 3 . 3 . . 4 1 4 . . . . . . 1 Database Lockouts 1 | . . 1 . . . . . . . . . . . . . . . . . . . . . . . . . . . . . . . . . . . . . Manual 55 | . 2 5 . . . . 4 . . . . . 2 . 2 . . . 2 . 2 . 5 . 7 . 2 1 . 15 . 3 . . . 1 . . 2 Terminals 127 | . 1 5 6 . . . 12 5 . . . 4 . 2 3 . . 5 2 6 7 3 5 . 8 6 4 . . 18 2 6 4 . 5 . 1 . 7 Fabricators 11 | . . . . . . . . . . . . . . . . . 3 . . . 3 . . . 3 . . . . . . 2 . . . . . . . Repair Stations 11 | . 2 . . . . . . . . . . . 1 . 2 . . . . . 3 . . . 1 . . . . . . . . . . . . . 2 Recycling Units . | . . . . . . . . . . . . . . . . . . . . . . . . . . . . . . . . . . . . . . . . Scanalyzers 25 | . . . . . . . 6 . 2 . . . . . . . 2 . . . 2 . . . 4 . . . . . . 9 . . . . . . . Garrison Access 38 | . . . . . . . 3 . . . 2 . 4 . 2 . 2 . 4 . 5 . . . 5 . . . . 3 . 3 . 2 . 3 . . . Terminal Hacks 32 | . 1 1 2 . . . 3 2 . . . 1 . 1 1 . . . 2 2 1 1 1 . 1 1 . . . 1 1 . 2 . 3 . 1 . 3 Record 1 | . . . . . . . . . . . . . . . . . . . . . . . . . . . . . . . . . . . . . . . 1 Robot Schematic 1 | . 1 . . . . . . . . . . . . . . . . . . . . . . . . . . . . . . . . . . . . . . Robot Analysis 1 | . . . . . . . 1 . . . . . . . . . . . . . . . . . . . . . . . . . . . . . . . . Prototype ID Bank 3 | . . 1 1 . . . 1 . . . . . . . . . . . . . . . . . . . . . . . . . . . . . . . . Open Door 3 | . . . . . . . . . . . . 1 . . . . . . . . . . . . . . . . . . . . 1 . . . . . 1 Branch Access Points 1 | . . . . . . . . . . . . . . . . . . . 1 . . . . . . . . . . . . . . . . . . . . Emergency Access Points 5 | . . . . . . . . 1 . . . . . 1 . . . . . 1 . . . . . 1 . . . . . . . . 1 . . . . Terminal Index 2 | . . . . . . . . . . . . . . . . . . . . . . . . . 1 . . . . . . . . . . . . . 1 Unreport Threat 2 | . . . . . . . . . . . . . . . 1 . . . . . . . 1 . . . . . . . . . . . . . . . . Locate Traps 2 | . . . . . . . 1 . . . . . . . . . . . . . 1 . . . . . . . . . . . . . . . . . . Disarm Traps 1 | . . . . . . . . . . . . . . . . . . . . . . . . . . . . . . 1 . . . . . . . . . Hauler Manifests 1 | . . . 1 . . . . . . . . . . . . . . . . . . . . . . . . . . . . . . . . . . . . Zone Layout 1 | . . . . . . . . . . . . . . . . . . . 1 . . . . . . . . . . . . . . . . . . . . Garrison Registry 6 | . . . . . . . . 1 . . . . . . . . . . . 1 . 1 . . . . . . . . 1 . 1 . 1 . . . . Patrol Navigation 2 | . . . . . . . . . . . . . . . . . . . . . . . . . . . . . . . . . . . 1 . 1 . . Fabricator Hacks 6 | . . . . . . . . . . . . . . . . . 3 . . . . . . . 1 . . . . . . 2 . . . . . . . Network Status 1 | . . . . . . . . . . . . . . . . . 1 . . . . . . . . . . . . . . . . . . . . . . Load Schematic 3 | . . . . . . . . . . . . . . . . . 1 . . . . . . . 1 . . . . . . 1 . . . . . . . Build 2 | . . . . . . . . . . . . . . . . . 1 . . . . . . . . . . . . . . 1 . . . . . . . Repair Station Hacks 6 | . 2 . . . . . . . . . . . . . 2 . . . . . 2 . . . . . . . . . . . . . . . . . . Scan Component 3 | . 1 . . . . . . . . . . . . . 1 . . . . . 1 . . . . . . . . . . . . . . . . . . Repair 3 | . 1 . . . . . . . . . . . . . 1 . . . . . 1 . . . . . . . . . . . . . . . . . . Recycling Unit Hacks . | . . . . . . . . . . . . . . . . . . . . . . . . . . . . . . . . . . . . . . . . Scanalyzer 14 | . . . . . . . 5 . . . . . . . . . 2 . . . 1 . . . 2 . . . . . . 4 . . . . . . . Insert Component 1 | . . . . . . . 1 . . . . . . . . . . . . . . . . . . . . . . . . . . . . . . . . Analyze 2 | . . . . . . . 2 . . . . . . . . . . . . . . . . . . . . . . . . . . . . . . . . Retrieve Study 11 | . . . . . . . 2 . . . . . . . . . 2 . . . 1 . . . 2 . . . . . . 4 . . . . . . . Garrison Access Hacks 28 | . . . . . . . 2 . . . 2 . 2 . 2 . 2 . 2 . 4 . . . 4 . . . . 2 . 2 . 2 . 2 . . . Unlock Access 12 | . . . . . . . 1 . . . 1 . 1 . 1 . 1 . 1 . 1 . . . 1 . . . . 1 . 1 . 1 . 1 . . . Seal Access 2 | . . . . . . . . . . . . . . . . . . . . . 1 . . . 1 . . . . . . . . . . . . . . Coupler Status 14 | . . . . . . . 1 . . . 1 . 1 . 1 . 1 . 1 . 2 . . . 2 . . . . 1 . 1 . 1 . 1 . . . Unauthorized Hacks 21 | . . . . . . . 2 . . . . . 1 . . . . . 1 . 2 . 1 . 4 . . . . 7 . 1 . . . 1 . . 1 Terminals 13 | . . . . . . . 2 . . . . . . . . . . . . . 1 . 1 . 2 . . . . 6 . 1 . . . . . . . Track 6 | . . . . . . . . . . . . . . . . . . . . . 1 . . . . . . . . 5 . . . . . . . . . Botnet 4 | . . . . . . . 1 . . . . . . . . . . . . . . . . . 1 . . . . 1 . 1 . . . . . . . Operators 3 | . . . . . . . 1 . . . . . . . . . . . . . . . 1 . 1 . . . . . . . . . . . . . . Fabricators . | . . . . . . . . . . . . . . . . . . . . . . . . . . . . . . . . . . . . . . . . Repair Stations 2 | . . . . . . . . . . . . . . . . . . . . . . . . . 1 . . . . . . . . . . . . . 1 Mechanics 2 | . . . . . . . . . . . . . . . . . . . . . . . . . 1 . . . . . . . . . . . . . 1 Recycling Units . | . . . . . . . . . . . . . . . . . . . . . . . . . . . . . . . . . . . . . . . . Scanalyzers . | . . . . . . . . . . . . . . . . . . . . . . . . . . . . . . . . . . . . . . . . Garrison Access 6 | . . . . . . . . . . . . . 1 . . . . . 1 . 1 . . . 1 . . . . 1 . . . . . 1 . . . Restock 2 | . . . . . . . . . . . . . 1 . . . . . . . . . . . 1 . . . . . . . . . . . . . . Eject 4 | . . . . . . . . . . . . . . . . . . . 1 . 1 . . . . . . . . 1 . . . . . 1 . . . Data Cores Recovered . | . . . . . . . . . . . . . . . . . . . . . . . . . . . . . . . . . . . . . . . . Used . | . . . . . . . . . . . . . . . . . . . . . . . . . . . . . . . . . . . . . . . . Hacking Detections 66 | . 1 1 1 . . . 6 2 1 . . 1 1 1 3 . 2 2 2 1 7 1 1 . 7 1 3 1 . 9 1 5 . . 1 1 . . 3 Full Trace Events 9 | . . . . . . . 1 2 . . . . . . . . . . . 1 1 . . . 2 1 . . . . . 1 . . . . . . . Feedback Events . | . . . . . . . . . . . . . . . . . . . . . . . . . . . . . . . . . . . . . . . . Feedback Blocked . | . . . . . . . . . . . . . . . . . . . . . . . . . . . . . . . . . . . . . . . . Robot Schematics Acquired 1 | . 1 . . . . . . . . . . . . . . . . . . . . . . . . . . . . . . . . . . . . . . Robots Built 2 | . . . . . . . . . . . . . . . . . 1 . . . . . . . . . . . . . . 1 . . . . . . . Authchips 2 | . . . . . . . . . . . . . . . . . 1 . . . . . . . . . . . . . . 1 . . . . . . . Time 67 | . . . . . . . . . . . . . . . . . 40 . . . . . . . . . . . . . . 27 . . . . . . . Total Robot Build Rating 2 | . . . . . . . . . . . . . . . . . 1 . . . . . . . . . . . . . . 1 . . . . . . . Part Schematics Acquired 1 | . . . . . . . 1 . . . . . . . . . . . . . . . . . . . . . . . . . . . . . . . . Parts Built . | . . . . . . . . . . . . . . . . . . . . . . . . . . . . . . . . . . . . . . . . Authchips . | . . . . . . . . . . . . . . . . . . . . . . . . . . . . . . . . . . . . . . . . Time . | . . . . . . . . . . . . . . . . . . . . . . . . . . . . . . . . . . . . . . . . Total Part Build Rating . | . . . . . . . . . . . . . . . . . . . . . . . . . . . . . . . . . . . . . . . . Part Studies Acquired 11 | . . . . . . . 2 . . . . . . . . . 2 . . . 1 . . . 2 . . . . . . 4 . . . . . . . Parts Repaired 3 | . 1 . . . . . . . . . . . . . 1 . . . . . 1 . . . . . . . . . . . . . . . . . . Time 122 | . 26 . . . . . . . . . . . . . 62 . . . . . 34 . . . . . . . . . . . . . . . . . . Parts Recycled . | . . . . . . . . . . . . . . . . . . . . . . . . . . . . . . . . . . . . . . . . Recycled Matter . | . . . . . . . . . . . . . . . . . . . . . . . . . . . . . . . . . . . . . . . . Retrieved Matter . | . . . . . . . . . . . . . . . . . . . . . . . . . . . . . . . . . . . . . . . . Retrieved Components . | . . . . . . . . . . . . . . . . . . . . . . . . . . . . . . . . . . . . . . . . Parts Scanalyzed 1 | . . . . . . . 1 . . . . . . . . . . . . . . . . . . . . . . . . . . . . . . . . Part Schematics Acquired 1 | . . . . . . . 1 . . . . . . . . . . . . . . . . . . . . . . . . . . . . . . . . Parts Damaged . | . . . . . . . . . . . . . . . . . . . . . . . . . . . . . . . . . . . . . . . . Bothacking | -11 -10 -10 -9 -9 -9 -8 -8 -8 -7 -7 -7 -7 -7 -7 -7 -7 -6 -6 -5 -5 -5 -5 -4 -4 -4 -4 -4 -4 -4 -4 -4 -3 -3 -2 -2 -1 -1 -1 -1 ------------ Run | Yrd Mat Min Mat Min Exi Min Mat Gar Fac Was Fac Gar Fac Gar Fac Gar Fac Gar Fac Gar Fac Gar Fac Was Fac Gar Ext Cet Arc Hub Gar Res Gar Res Gar Acc Gar Acc Com Used RIF Installer 18 | . . . . . . . . 2 . . . 2 . 1 . 1 . 2 . 1 . 2 . . . 2 . . . . 1 . 1 . 2 . 1 . . Coupler Efficiency 2 | . . . . . . . . . . . . . . . . . . . . . . 1 . . . . . . . . . . 1 . . . . . . Code Merge 2 | . . . . . . . . . . . . . . . . 1 . . . . . . . . . . . . . . . . . . 1 . . . . Command Fork 2 | . . . . . . . . . . . . 1 . . . . . . . . . . . . . . . . . . 1 . . . . . . . . Threat Obfuscator 2 | . . . . . . . . . . . . 1 . . . . . 1 . . . . . . . . . . . . . . . . . . . . . Zone Cloak 2 | . . . . . . . . . . . . 1 . . . . . . . 1 . . . . . . . . . . . . . . . . . . . Watcher Feeds 1 | . . . . . . . . . . . . . . 1 . . . . . . . . . . . . . . . . . . . . . . . . . Patrol Navigation 1 | . . . . . . . . . . . . . . . . . . 1 . . . . . . . . . . . . . . . . . . . . . Alert ID Control 1 | . . . . . . . . . . . . . . . . . . . . . . . . . . . . . . . . . . . . . 1 . . Structural Interface 1 | . . . . . . . . 1 . . . . . . . . . . . . . . . . . . . . . . . . . . . . . . . Autooverride 3 | . . . . . . . . . . . . . . . . . . . . . . 1 . . . 2 . . . . . . . . . . . . . Crosswire 1 | . . . . . . . . . . . . . . . . . . . . . . . . . . . . . . . . . . . 1 . . . . Robots Hacked 325 | . . . . . . . . . 4 6 . 14 3 4 3 6 4 9 9 15 17 8 6 . 14 13 5 . 1 6 20 6 7 17 20 . 38 56 14 Non-combat 43 | . . . . . . . . . 3 . . . 2 . 2 . 2 . 3 . 4 . 2 . 7 . . . . 2 . 3 . 1 . . . 9 3 Combat 282 | . . . . . . . . . 1 6 . 14 1 4 1 6 2 9 6 15 13 8 4 . 7 13 5 . 1 4 20 3 7 16 20 . 38 47 11 Autooverrided 114 | . . . . . . . . . . . . . . . . . . . . . . . 2 . 2 6 5 . 1 3 12 2 3 7 11 . 23 31 6 Robot Hacks Applied 252 | . . . . . . . . . 5 6 . 14 8 4 6 7 4 9 11 16 19 8 5 . 12 9 . . . 5 9 9 4 15 9 . 16 34 8 parse_system 15 | . . . . . . . . . . . . . . . . 1 . . . 1 2 1 . . 1 . . . . 1 . . 1 1 . . 2 4 . no_distress 1 | . . . . . . . . . 1 . . . . . . . . . . . . . . . . . . . . . . . . . . . . . . find_chute 2 | . . . . . . . . . 1 . . . . . . . . . . . . . 1 . . . . . . . . . . . . . . . . find_fabricator 3 | . . . . . . . . . . . . . . . . . . . . . 1 . 1 . . . . . . . . 1 . . . . . . . drop_inventory 17 | . . . . . . . . . 1 . . . . . . . 2 . 2 . 2 . 1 . 2 . . . . 1 . 2 . . . . . 4 . purge_threat 19 | . . . . . . . . . . . . . 4 . 3 . . . 2 . . . . . . . . . . 3 . 5 . 2 . . . . . map_route 5 | . . . . . . . . . . . . . . . . . . . . . . . . . . . . . . . . . . . . . . 3 2 redirect_shields 1 | . . . . . . . . . . . . . . . . . . . . . . . . . 1 . . . . . . . . . . . . . . ignore_targets 6 | . . . . . . . . . . 6 . . . . . . . . . . . . . . . . . . . . . . . . . . . . . find_garrison 3 | . . . . . . . . . . . . . 1 . . . . . . . . . . . 1 . . . . . . . . 1 . . . . . overload_power 2 | . . . . . . . . . . . . . . . . . . . . . 1 . . . 1 . . . . . . . . . . . . . . amplify_resonance 40 | . . . . . . . . . . . . 1 1 2 1 3 . 2 1 8 2 2 2 . . 3 . . . . 2 1 . 2 3 . 3 1 . wipe_record 1 | . . . . . . . . . . . . . . . . . . 1 . . . . . . . . . . . . . . . . . . . . . disable_weapons 1 | . . . . . . . . . . . . . . . . . 1 . . . . . . . . . . . . . . . . . . . . . . reboot_system 2 | . . . . . . . . . . . . 1 . . . . . . . 1 . . . . . . . . . . . . . . . . . . . overwrite_iff 40 | . . . . . . . . . 2 . . 4 . 1 . 1 . 1 2 4 3 3 . . 2 1 . . . . 5 . 2 3 1 . 4 . 1 streamctrl_high 1 | . . . . . . . . . . . . . . . . . . . . . . . . . . . . . . . . . . . . . . 1 . formatsys_low 10 | . . . . . . . . . . . . . 2 . 2 . . . 1 . 1 . . . 1 1 . . . . . . . . . . . 2 . formatsys_high 83 | . . . . . . . . . . . . 8 . 1 . 2 1 5 3 2 7 2 . . 3 4 . . . . 2 . 1 6 5 . 7 19 5 Relay Couplers Released 220 | . . . . . . . . 14 . . . 9 3 10 . 21 . 21 4 19 3 17 . . 3 21 . . . 3 18 . 16 . 13 3 22 . . Ejected 13 | . . . . . . . . . . . . . . . . . . . 4 . 3 . . . . . . . . 3 . . . . . 3 . . . Machine Destruction 201 | . . . . . . . . 14 . . . 9 . 10 . 21 . 21 . 19 . 17 . . . 21 . . . . 18 . 16 . 13 . 22 . . Programmers 6 | . . . . . . . . . . . . . 3 . . . . . . . . . . . 3 . . . . . . . . . . . . . . Attached 59 | . . . . . . . . 1 1 . . 4 2 1 2 4 1 4 2 3 6 3 2 . 1 2 . . . . 5 . 1 . 4 . 1 6 3 Crosswired 20 | . . . . . . . . . . . . . . . . . . . . . . . . . . . . . . . . . . . 4 1 15 . . Merged Code Value 554 | . . . . . . . . . . . . . . . . 21 . 35 7 6 . 13 . . . 61 . . . . 81 . 43 . 34 18 235 . . Fabnet Peak Effective % . | . . . . . . . . . . . . . . . . . . . . . . . . . . . . . . . . . . . . . . . . Robots Rewired 89 | . . . . . . . . . . . . 6 . 2 . 5 . 1 . 8 . 11 . . . 5 21 . . . 13 . 8 . 7 . 2 . . Allies Hacked 18 | . . . . . . . . . . . . . . 5 . 1 . . 1 . . . . . 1 . . . . . . . . 3 . . 4 1 2 Hacks Repelled . | . . . . . . . . . . . . . . . . . . . . . . . . . . . . . . . . . . . . . . . . Allies | -11 -10 -10 -9 -9 -9 -8 -8 -8 -7 -7 -7 -7 -7 -7 -7 -7 -6 -6 -5 -5 -5 -5 -4 -4 -4 -4 -4 -4 -4 -4 -4 -3 -3 -2 -2 -1 -1 -1 -1 -------- Run | Yrd Mat Min Mat Min Exi Min Mat Gar Fac Was Fac Gar Fac Gar Fac Gar Fac Gar Fac Gar Fac Gar Fac Was Fac Gar Ext Cet Arc Hub Gar Res Gar Res Gar Acc Gar Acc Com Total Allies 431 | . . . . 1 . . 1 3 1 19 . 21 2 10 2 11 2 10 8 18 11 18 2 . 9 20 37 5 1 5 35 6 19 16 29 . 41 52 16 Largest Group 29 | . . . . 1 1 . 1 3 1 18 18 15 16 17 17 6 3 4 3 10 9 9 1 . 3 7 29 29 27 25 13 4 14 3 16 15 17 12 11 Highest-Rated Group 1618 | . . . . 31 31 . 16 61 16 444 444 532 565 734 649 269 86 162 106 312 289 446 58 . 154 393 1358 1618 1526 1346 567 150 641 180 950 898 1014 1003 1095 Highest-Rated Ally 219 | . . . . 31 31 . 16 29 16 142 35 95 95 95 95 95 40 148 49 49 142 85 58 . 114 80 159 159 151 96 58 56 64 64 69 69 219 219 219 Total Orders 43 | . . . . . . . . . . . . 2 1 1 1 1 2 3 1 1 1 . . . 1 13 1 4 . 8 . 1 1 . . . . . . STAY 15 | . . . . . . . . . . . . 1 . . . . 1 2 . 1 . . . . . 4 . 2 . 3 . . 1 . . . . . . FOLLOW 1 | . . . . . . . . . . . . . . . . . . . . . . . . . . 1 . . . . . . . . . . . . . AID 18 | . . . . . . . . . . . . 1 1 1 1 1 1 1 1 . 1 . . . 1 3 1 2 . 1 . 1 . . . . . . . EXPLORE 7 | . . . . . . . . . . . . . . . . . . . . . . . . . . 3 . . . 4 . . . . . . . . . RETURN 2 | . . . . . . . . . . . . . . . . . . . . . . . . . . 2 . . . . . . . . . . . . . Ally Attacks 2301 | . . . . . . . 3 19 5 21 46 68 31 88 80 65 3 42 24 52 60 157 3 . 15 54 179 60 27 182 164 16 90 34 80 . 216 302 115 Total Damage 73472 | . . . . . . . 49 218 77 1024 614 1907 892 2595 2250 2100 94 861 588 1306 1663 5223 108 . 343 2167 5171 1607 820 5849 5285 390 3509 1419 3283 . 6239 11123 4698 Kills 398 | . . . . . . . 1 2 . 2 6 15 7 27 22 17 3 4 5 14 8 38 2 . 2 11 27 4 3 27 23 . 10 6 14 . 31 52 15 Allies Corrupted 27 | . . . . . . . . . . . . . . . . 1 . . . . . . . . 2 . . . . 4 2 . 2 . . . 7 9 . Allies Melted 10 | . . . . . . . . . . . . 2 . . . . . . . 2 2 1 . . . . 1 . . . . . . . 1 . . . 1 X0-1V1 Amusement Gains 256 | . 9 20 . 5 . 5 10 . . . . . . . . 20 . 20 . 10 10 25 4 . . . . . . 40 40 12 . . . . . 1 25 Average Entertainment 61 | . 8 22 15 13 . 8 10 16 16 16 16 16 16 16 16 34 36 43 56 60 70 90 96 100 100 100 99 64 34 33 76 95 100 100 100 100 99 98 75 Good Acts 214 | . 3 4 . 6 . 2 8 3 1 6 2 8 . 5 4 12 3 12 3 11 12 4 7 5 14 3 2 . 1 2 6 3 8 8 7 5 10 7 17 Bad Acts 137 | . 1 3 3 2 . 1 1 2 2 5 1 4 2 3 6 4 1 4 . 6 5 4 . 4 4 3 7 3 2 11 6 5 4 . 3 . . 9 16 Intel | -11 -10 -10 -9 -9 -9 -8 -8 -8 -7 -7 -7 -7 -7 -7 -7 -7 -6 -6 -5 -5 -5 -5 -4 -4 -4 -4 -4 -4 -4 -4 -4 -3 -3 -2 -2 -1 -1 -1 -1 ------- Run | Yrd Mat Min Mat Min Exi Min Mat Gar Fac Was Fac Gar Fac Gar Fac Gar Fac Gar Fac Gar Fac Gar Fac Was Fac Gar Ext Cet Arc Hub Gar Res Gar Res Gar Acc Gar Acc Com Active Infowar (turns) 10786 | . . . . . . . . . . . . . . . 427 639 . 224 699 612 1006 143 252 . 138 1567 1669 503 219 1599 . 26 174 96 21 . . 410 362 Jamming 10786 | . . . . . . . . . . . . . . . 427 639 . 224 699 612 1006 143 252 . 138 1567 1669 503 219 1599 . 26 174 96 21 . . 410 362 Robot Analysis Total 1 | . . . . . . . 1 . . . . . . . . . . . . . . . . . . . . . . . . . . . . . . . . Derelict Logs Recovered 2 | . . 1 . 1 . . . . . . . . . . . . . . . . . . . . . . . . . . . . . . . . . . . Drone Launches 8 | . . . . . . . . . . . . . . . . . . . . . . . . . 2 2 . . . 4 . . . . . . . . . Drone Recoveries 7 | . . . . . . . . . . . . . . . . . . . . . . . . . . 4 . . . 3 . . . . . . . . . Exploration | -11 -10 -10 -9 -9 -9 -8 -8 -8 -7 -7 -7 -7 -7 -7 -7 -7 -6 -6 -5 -5 -5 -5 -4 -4 -4 -4 -4 -4 -4 -4 -4 -3 -3 -2 -2 -1 -1 -1 -1 ------------- Run | Yrd Mat Min Mat Min Exi Min Mat Gar Fac Was Fac Gar Fac Gar Fac Gar Fac Gar Fac Gar Fac Gar Fac Was Fac Gar Ext Cet Arc Hub Gar Res Gar Res Gar Acc Gar Acc Com Turns Passed 44509 | 65 1880 1268 851 620 214 159 802 1288 587 874 327 1605 418 1278 1098 1468 466 1508 1445 1920 1493 1580 441 557 1422 1576 1669 503 430 1764 1089 1035 1322 906 1173 485 1764 2194 2965 Spaces Moved 21280 | 35 933 510 510 540 194 54 388 674 269 337 191 815 173 652 632 726 225 749 485 651 607 823 173 259 674 817 714 188 191 865 596 602 657 416 468 104 920 1218 1245 Core 16 | 2 . . . . . . . . . . . . . . . . . . . . . . . . 6 . . . . . . . . . . . . . 8 Treads 20140 | 33 933 510 272 . . 54 388 674 269 337 191 815 173 652 632 726 225 749 485 651 607 823 173 259 635 817 714 188 191 865 596 602 657 416 468 104 920 1218 1118 Legs . | . . . . . . . . . . . . . . . . . . . . . . . . . . . . . . . . . . . . . . . . Wheels 1124 | . . . 238 540 194 . . . . . . . . . . . . . . . . . . . 33 . . . . . . . . . . . . . 119 Hover . | . . . . . . . . . . . . . . . . . . . . . . . . . . . . . . . . . . . . . . . . Flight . | . . . . . . . . . . . . . . . . . . . . . . . . . . . . . . . . . . . . . . . . Fastest Speed 50 | 50 160 160 110 110 110 160 156 155 156 160 160 160 160 160 160 160 160 160 246 246 158 158 161 158 80 155 155 155 155 155 155 155 165 158 165 165 165 158 50 Average Speed 164 | 153 165 178 139 110 110 160 159 156 175 168 160 160 160 160 160 160 160 162 246 246 175 158 172 160 157 155 155 155 155 155 155 156 165 165 169 165 165 160 168 Slowest Speed 340 | 160 240 240 240 110 110 160 160 212 221 221 160 160 160 160 160 160 160 166 246 246 250 161 246 168 232 155 155 155 155 155 155 165 165 197 170 165 221 197 340 Overloaded Moves . | . . . . . . . . . . . . . . . . . . . . . . . . . . . . . . . . . . . . . . . . Propulsion Burnouts . | . . . . . . . . . . . . . . . . . . . . . . . . . . . . . . . . . . . . . . . . Robots Hopped . | . . . . . . . . . . . . . . . . . . . . . . . . . . . . . . . . . . . . . . . . Potential Cave-ins 3 | . . . . . . . . . . . . . . . 3 . . . . . . . . . . . . . . . . . . . . . . . . Cave-ins Triggered 1 | . . . . . . . . . . . . . . . . . . . . . . . . . . . . . . . 1 . . . . . . . . Exploration Rate (%) 58 | 3 98 69 57 97 66 11 45 71 8 90 7 89 8 95 25 98 16 91 28 84 34 97 13 85 18 99 86 66 95 97 73 34 93 22 72 3 97 46 43 Regions Visited 39 Branch Regions 9 Pre-discovered Areas 1 | . . 1 . . . . . . . . . . . . . . . . . . . . . . . . . . . . . . . . . . . . . Known Exits Taken 12 | . . . . . . . 1 . . . 1 . 1 . 1 . 1 . 1 . 1 . . . 1 . . . . 1 . 1 . 1 . 1 . . . Unknown Exits Taken 11 | 1 1 1 1 1 1 1 . . . . . . . . . . . . . . . . . . . . 1 1 1 . . . . . . . . 1 . Scrap Searched 2 | . . 1 . 1 . . . . . . . . . . . . . . . . . . . . . . . . . . . . . . . . . . . Spaces Dug 61 | . . . . . . . 1 1 . . . . . . 1 . . 1 . . 8 . 1 . 6 . 3 10 . 7 1 1 1 6 1 . . 8 4 Terrain Destroyed 996 | . 3 . . 58 . 60 37 32 2 10 . 7 . . 5 4 . 20 13 5 23 11 16 . 84 17 22 18 4 333 34 4 52 30 3 . 11 20 58 Melee 1 | . . . . . . . . 1 . . . . . . . . . . . . . . . . . . . . . . . . . . . . . . . Projectile 320 | . . . . . . 5 12 . 2 2 . 7 . . 5 . . 1 5 3 23 11 6 . 21 15 22 18 4 34 11 4 7 10 3 . 11 20 58 AOE 675 | . 3 . . 58 . 55 25 31 . 8 . . . . . 4 . 19 8 2 . . 10 . 63 2 . . . 299 23 . 45 20 . . . . . Terrain Rammed . | . . . . . . . . . . . . . . . . . . . . . . . . . . . . . . . . . . . . . . . . Walls Destroyed . | . . . . . . . . . . . . . . . . . . . . . . . . . . . . . . . . . . . . . . . . Machines Disabled . | . . . . . . . . . . . . . . . . . . . . . . . . . . . . . . . . . . . . . . . . Actions | -11 -10 -10 -9 -9 -9 -8 -8 -8 -7 -7 -7 -7 -7 -7 -7 -7 -6 -6 -5 -5 -5 -5 -4 -4 -4 -4 -4 -4 -4 -4 -4 -3 -3 -2 -2 -1 -1 -1 -1 --------- Run | Yrd Mat Min Mat Min Exi Min Mat Gar Fac Was Fac Gar Fac Gar Fac Gar Fac Gar Fac Gar Fac Gar Fac Was Fac Gar Ext Cet Arc Hub Gar Res Gar Res Gar Acc Gar Acc Com Total 29063 | 43 1109 819 601 555 195 91 500 781 348 493 209 1029 305 787 696 924 320 914 631 858 920 1029 303 407 1000 1124 1271 401 325 1246 747 689 885 632 845 416 1177 1448 1990 Wait 3397 | . 57 270 25 3 . 5 21 7 32 32 13 51 105 48 22 33 73 22 43 68 147 28 45 119 102 99 237 163 69 236 22 20 89 72 221 307 64 62 365 Move 21250 | 34 932 509 509 539 193 53 388 673 269 336 191 814 172 651 632 725 225 748 484 650 606 822 173 258 674 816 713 187 190 864 595 602 656 416 467 103 919 1217 1245 Hop . | . . . . . . . . . . . . . . . . . . . . . . . . . . . . . . . . . . . . . . . . Pick Up 330 | 2 11 5 15 1 . 1 16 8 6 6 2 20 2 6 6 19 . 11 8 8 15 19 3 5 23 15 . 3 2 7 4 3 11 7 7 2 19 8 24 Fast Attach 137 | 6 8 1 1 1 . . 2 7 1 1 . . . 4 1 1 . 6 1 2 2 8 1 3 14 5 5 2 . 7 1 3 3 6 3 . 3 6 22 Attach 143 | . 2 3 2 . . 5 2 1 3 4 . 4 3 . 3 9 3 3 1 1 9 5 7 1 8 5 1 . 1 2 1 3 4 4 4 1 3 5 30 Detach 44 | . 1 . . . . . 1 . 2 5 . . 2 1 . 2 . . 1 1 1 . . 4 7 2 . . . 2 . 2 . . . . . 1 9 Swap 372 | . 3 2 10 4 . 5 11 8 7 11 2 5 1 7 8 14 7 18 16 25 18 18 14 2 14 10 . 2 1 4 16 8 14 10 11 3 19 22 22 Drop 267 | . 3 . 10 1 2 . 17 7 3 10 . 16 1 5 3 12 1 9 8 5 6 14 . 10 10 16 2 6 1 8 6 2 7 11 9 . 24 17 5 Fire 2464 | . 83 21 28 5 . 20 39 61 17 81 1 71 15 53 14 71 8 74 61 92 88 66 50 5 130 114 94 38 61 100 97 41 99 101 84 . 122 101 258 Melee 39 | . . . . . . 1 . 4 5 7 . . . . . . . . . . 4 1 4 . 13 . . . . . . . . . . . . . . Ram 1 | . . . . 1 . . . . . . . . . . . . . . . . . . . . . . . . . . . . . . . . . . . Kick . | . . . . . . . . . . . . . . . . . . . . . . . . . . . . . . . . . . . . . . . . Crush 132 | 1 9 8 1 . . 1 2 5 . . . 1 3 . 6 3 3 . 6 1 23 . 6 . 3 4 7 . . 16 1 5 . 4 2 . 1 3 7 Escape Stasis 4 | . . . . . . . . . . . . . . . . . . . . 4 . . . . . . . . . . . . . . . . . . . Rewire 479 | . . . . . . . . . . . . 47 1 12 1 35 . 23 2 1 1 48 . . 2 38 212 . . . 4 . 2 1 37 . 3 6 3 Trap 4 | . . . . . . . 1 . 3 . . . . . . . . . . . . . . . . . . . . . . . . . . . . . . Miscellaneous . | . . . . . . . . . . . . . . . . . . . . . . . . . . . . . . . . . . . . . . . . Route ------- -11/Scrapyard -10/Materials (discovered 5 exits: *Mat x3 / *Min / [*Sub]) -10/Mines -9/Materials (discovered 4 exits: *Mat / [*Min] / [*Sto x2]) -9/Mines (discovered 4 exits: *Mat x2 / [*Exi] / [*Zio]) -9/Exiles (discovered 2 exits: [*Min x2]) -8/Mines -8/Materials (discovered 2 exits: *Fac / Gar) -8/Garrison (discovered 3 exits: *Fac x3) -7/Factory -7/Waste -7/Factory (discovered 2 exits: *Fac / Gar) -7/Garrison (discovered 4 exits: *Fac x4) -7/Factory -7/Garrison (discovered 4 exits: *Fac x3 / *Fac) -7/Factory (discovered 2 exits: [*Low] / Gar) -7/Garrison (discovered 3 exits: *Fac x3) -6/Factory -6/Garrison (discovered 3 exits: *Fac x3) -5/Factory (discovered 3 exits: Upp x2 / Gar) -5/Garrison (discovered 3 exits: *Fac x3) -5/Factory (discovered 4 exits: *Fac x3 / Gar) -5/Garrison (discovered 3 exits: *Fac x3) -4/Factory -4/Waste -4/Factory (discovered 4 exits: Res x2 / [*Upp] / Gar) -4/Garrison (discovered 3 exits: *Ext x3) -4/Extension (discovered 2 exits: *Res / *Cet) -4/Cetus (discovered 2 exits: *Res / [*Arc]) -4/Archives (discovered 3 exits: *Res / *Hub x2) -4/Hub_04(d) (discovered 5 exits: *Res x4 / Gar) -4/Garrison (discovered 3 exits: *Res x3) -3/Research (discovered 2 exits: [*Qua] / Gar) -3/Garrison (discovered 3 exits: *Res x3) -2/Research (discovered 3 exits: Acc / [*Tes] / Gar) -2/Garrison (discovered 3 exits: *Acc x3) -1/Access -1/Garrison (discovered 3 exits: *Acc x3) -1/Access -1/Command History --------- Turn | Location | Event 15 | -11/Scrapyard | Discovered new exit (range 16) 66 | -11/Scrapyard | Entered Materials 67 | -10/Materials | Met a group of wandering Federalists 314 | -10/Materials | Build established: Mutant 632 | -10/Materials | Repaired Lgt. Treads 676 | -10/Materials | Discovered new exit (range 4) 1079 | -10/Materials | Discovered new exit (range 12) 1486 | -10/Materials | Discovered new exit (range 7) 1534 | -10/Materials | Discovered new exit (range 5) 1630 | -10/Materials | Discovered new exit (range 8) 1863 | -10/Materials | Prayed at D.C.S.S. Altar Unit 1870 | -10/Materials | Core integrity permanently improved by X0-1V1 (+200) 1911 | -10/Materials | X0-1V1 foreshadows a heat wave 1946 | -10/Materials | Entered Mines 1989 | -10/Mines | Assembled infested the area 2220 | -10/Mines | X0-1V1 caused items to flee you 2464 | -10/Mines | Items stopped fleeing you 2522 | -10/Mines | Core integrity restored by X0-1V1 (+81) 2842 | -10/Mines | Central database locked down 2872 | -10/Mines | Core integrity restored by X0-1V1 (+67) 3074 | -10/Mines | Learned location of Zion (-7) 3118 | -10/Mines | Energy capacity permanently improved by X0-1V1 (+200; -100 max core) 3185 | -10/Mines | Discovered new exit (range 9) 3214 | -10/Mines | Entered Materials 3214 | -9/Materials | Evolved 2 slots: Propulsion x1, Utility x1 3254 | -9/Materials | Discovered new exit (range 5) 3303 | -9/Materials | Discovered new exit (range 9) 3377 | -9/Materials | Discovered new exit (range 18) 3436 | -9/Materials | X0-1V1 made a cryptic comment about sterilization and BL-4Z3 3642 | -9/Materials | Sterilization system engaged 3642 | -9/Materials | Non-combat units ordered to evacuate 3742 | -9/Materials | Combat units ordered to evacuate 3942 | -9/Materials | Ambient heat levels rising (+10) 3961 | -9/Materials | Discovered new exit (range 6) 4029 | -9/Materials | Build established: Scavenger-Mutant 4065 | -9/Materials | Entered Mines 4088 | -9/Mines | A Derelict revealed a hidden shortcut to a safe place 4148 | -9/Mines | Heat dissipation permanently improved by X0-1V1 (+15; -75 max core) 4176 | -9/Mines | Met a Derelict bent on vengeance 4221 | -9/Mines | Found a Scrap Suit stashed away for nefarious purposes 4257 | -9/Mines | Discovered new exit (range 5) 4449 | -9/Mines | X0-1V1 activates XOMVISION 4551 | -9/Mines | Learned Materials stockpile data 4561 | -9/Mines | Discovered new exit (range 5) 4563 | -9/Mines | Received a Mining Laser from a helpful Derelict 4679 | -9/Mines | Deemed a non-threat by the Exiles lab entrance 4679 | -9/Mines | Discovered new exit (range 5) 4685 | -9/Mines | Entered Exiles 4685 | -9/Exiles | Found Exiles lab abandoned 4685 | -9/Exiles | Accompanied by 1 ally 4700 | -9/Exiles | Discovered new exit (range 16) 4886 | -9/Exiles | Discovered new exit (range 12) 4899 | -9/Exiles | Entered Mines 4908 | -8/Mines | Discovered new exit (range 13) 4931 | -8/Mines | Destroyed 7 combat bots 4994 | -8/Mines | Build established: Mutant 5058 | -8/Mines | Entered Materials 5058 | -8/Materials | Evolved 2 slots: Propulsion x1, Utility x1 5185 | -8/Materials | X0-1V1 sent you to a vault 5297 | -8/Materials | Discovered new exit (range 9) 5427 | -8/Materials | X0-1V1 turns hostiles against one another 5438 | -8/Materials | X0-1V1 whisked you away to safety 5813 | -8/Materials | X0-1V1 vaporized surrounding terrain (radius 21) 5860 | -8/Materials | Identified exit to Garrison 5860 | -8/Materials | Entered Garrison 5877 | -8/Garrison | Identified exit to Factory 5877 | -8/Garrison | X0-1V1 revealed exit location to -7/Factory 5926 | -8/Garrison | Triggered checkpoint 5963 | -8/Garrison | Garrison Relay disabled 5995 | -8/Garrison | Garrison Relay disabled 6141 | -8/Garrison | X0-1V1 vaporized surrounding terrain (radius 18) 6211 | -8/Garrison | Installed Relay Interface Framework 6294 | -8/Garrison | Expanded RIF knowledge: Structural Interface 6547 | -8/Garrison | X0-1V1 sent you into danger 6548 | -8/Garrison | Triggered checkpoint 6558 | -8/Garrison | X0-1V1 turns hostiles against one another 6648 | -8/Garrison | Triggered checkpoint 6800 | -8/Garrison | Garrison Relay disabled 6812 | -8/Garrison | Triggered checkpoint 6903 | -8/Garrison | Discovered exit to Factory (range 65) 6903 | -8/Garrison | Discovered exit to Factory (range 34) 6903 | -8/Garrison | Discovered exit to Factory (range 22) 7024 | -8/Garrison | Garrison Relay disabled 7102 | -8/Garrison | Build established: Bothacker-Mutant 7148 | -8/Garrison | Entered Factory 7148 | -7/Factory | Evolved 2 slots: Utility x2 7196 | -7/Factory | X0-1V1 enhanced Transport squad support 7220 | -7/Factory | X0-1V1 mutated your Utility slot to Power slot 7735 | -7/Factory | Manually triggered Chute Trap 7735 | -7/Factory | Sucked down chute 7735 | -7/Factory | Entered Waste 7740 | -7/Waste | X0-1V1 activates XOMVISION 7802 | -7/Waste | Spotted C-40 Crusher 7820 | -7/Waste | Spotted C-40 Crusher 7832 | -7/Waste | Spotted C-40 Crusher 7851 | -7/Waste | Crushed by Compactor (1 part destroyed) 7870 | -7/Waste | Spotted C-40 Crusher 7882 | -7/Waste | Spotted C-40 Crusher 7906 | -7/Waste | Spotted C-40 Crusher 7908 | -7/Waste | X0-1V1 sent allied H-71 Marshal (x1) 7912 | -7/Waste | Allies destroyed C-40 Crusher 7988 | -7/Waste | Allies destroyed C-40 Crusher 8053 | -7/Waste | Destroyed C-40 Crusher 8218 | -7/Waste | Destroyed C-40 Crusher 8248 | -7/Waste | Destroyed C-40 Crusher 8289 | -7/Waste | X0-1V1 activates XOMVISION 8298 | -7/Waste | Destroyed C-40 Crusher 8332 | -7/Waste | Prototype Engine reconfigured into Item Mimic 8361 | -7/Waste | Discovered new exit (range 13) 8467 | -7/Waste | Warlord forces began an assault 8609 | -7/Waste | Entered Factory 8609 | -7/Factory | Accompanied by 18 allies 8796 | -7/Factory | Build established: Mutant 8829 | -7/Factory | Discovered new exit (range 10) 8923 | -7/Factory | Identified exit to Garrison 8936 | -7/Factory | Entered Garrison 8936 | -7/Garrison | Accompanied by 11 allies 8956 | -7/Garrison | P-60 Hacker assimilated allied ZH-UR2(d) 9047 | -7/Garrison | Lost 8 allies 9058 | -7/Garrison | X0-1V1 vaporized surrounding terrain (radius 16) 9214 | -7/Garrison | Triggered checkpoint 9312 | -7/Garrison | Triggered checkpoint 9336 | -7/Garrison | Build established: Bothacker-Mutant 9338 | -7/Garrison | X0-1V1 destroyed Phase Generator 9338 | -7/Garrison | Phase Generator disabled 9398 | -7/Garrison | Triggered checkpoint 9421 | -7/Garrison | X0-1V1 activates XOMVISION 9496 | -7/Garrison | Discovered new exit (range 3) 9602 | -7/Garrison | Triggered checkpoint 9616 | -7/Garrison | Triggered checkpoint 9664 | -7/Garrison | Triggered checkpoint 9682 | -7/Garrison | Expanded RIF knowledge: Command Fork 9708 | -7/Garrison | Found embedded Infiltrators 9715 | -7/Garrison | Garrison Relay disabled 9810 | -7/Garrison | Discovered new exit (range 12) 9838 | -7/Garrison | Triggered checkpoint 9855 | -7/Garrison | Discovered new exit (range 5) 10012 | -7/Garrison | Expanded RIF knowledge: Threat Obfuscation 10064 | -7/Garrison | Discovered new exit (range 14) 10112 | -7/Garrison | Triggered checkpoint 10134 | -7/Garrison | Expanded RIF knowledge: Zone Cloak 10210 | -7/Garrison | Garrison Relay disabled 10515 | -7/Garrison | Build established: Botlord-Mutant 10539 | -7/Garrison | X0-1V1 vaporized surrounding terrain (radius 22) 10541 | -7/Garrison | Entered Factory 10541 | -7/Factory | Accompanied by 14 allies 10855 | -7/Factory | Identified exit to Garrison 10871 | -7/Factory | Build established: Commander-Mutant 10953 | -7/Factory | Garrison activated, responded to threat 10959 | -7/Factory | Entered Garrison 10959 | -7/Garrison | Accompanied by 16 allies 11020 | -7/Garrison | X0-1V1 mutated your Power slot to Propulsion slot 11137 | -7/Garrison | Triggered checkpoint 11195 | -7/Garrison | X0-1V1 upgraded ally (x4) 11371 | -7/Garrison | Triggered checkpoint 11383 | -7/Garrison | Triggered checkpoint 11399 | -7/Garrison | Triggered checkpoint 11439 | -7/Garrison | X0-1V1 caused items to flee you 11499 | -7/Garrison | Triggered checkpoint 11512 | -7/Garrison | X0-1V1 destroyed Phase Generator 11512 | -7/Garrison | Phase Generator disabled 11523 | -7/Garrison | Discovered new exit (range 10) 11581 | -7/Garrison | Garrison Relay disabled 11639 | -7/Garrison | Items stopped fleeing you 11697 | -7/Garrison | Found embedded Infiltrators 11739 | -7/Garrison | Triggered checkpoint 11742 | -7/Garrison | Discovered new exit (range 14) 11769 | -7/Garrison | Expanded RIF knowledge: Watcher Feeds 11869 | -7/Garrison | Triggered checkpoint 11927 | -7/Garrison | Discovered new exit (range 13) 11938 | -7/Garrison | Triggered checkpoint 11995 | -7/Garrison | Triggered checkpoint 12112 | -7/Garrison | Garrison Relay disabled 12191 | -7/Garrison | Discovered new exit (range 3) 12237 | -7/Garrison | Entered Factory 12237 | -7/Factory | Accompanied by 17 allies 12289 | -7/Factory | X0-1V1 vaporized surrounding terrain (radius 22) 12303 | -7/Factory | Discovered new exit (range 16) 12339 | -7/Factory | X0-1V1 put everyone to sleep 12386 | -7/Factory | Repaired Imp. Heavy Treads 12600 | -7/Factory | X0-1V1 sent you to a vault 12637 | -7/Factory | First assault squad dispatched 12953 | -7/Factory | Lost 6 allies 13015 | -7/Factory | Build established: Bothacker-Mutant 13143 | -7/Factory | X0-1V1 enhanced Transport squad support 13231 | -7/Factory | X0-1V1 woke everyone up 13241 | -7/Factory | X0-1V1 caused items to flee you 13322 | -7/Factory | Identified exit to Garrison 13335 | -7/Factory | Entered Garrison 13335 | -7/Garrison | Accompanied by 6 allies 13412 | -7/Garrison | P-60 Hacker assimilated allied G5-ZJ7(h) 13475 | -7/Garrison | P-60 Hacker assimilated allied JE-K91(h) 13501 | -7/Garrison | Spotted B-75 Beast 13515 | -7/Garrison | Triggered checkpoint 13527 | -7/Garrison | Allies destroyed B-75 Beast 13566 | -7/Garrison | Weapon slot count temporarily expanded by X0-1V1 (+4) 13598 | -7/Garrison | Identified exit to Factory 13598 | -7/Garrison | X0-1V1 revealed exit location to -6/Factory 13602 | -7/Garrison | Lost 3 allies 13632 | -7/Garrison | Garrison Relay disabled 13866 | -7/Garrison | Build established: Botlord-Tank 13911 | -7/Garrison | Triggered checkpoint 13929 | -7/Garrison | Triggered checkpoint 13965 | -7/Garrison | X0-1V1 mutated your Weapon slot to Utility slot 13988 | -7/Garrison | Found embedded Infiltrators 14007 | -7/Garrison | Triggered checkpoint 14051 | -7/Garrison | Garrison Relay disabled 14052 | -7/Garrison | X0-1V1 destroyed Phase Generator 14052 | -7/Garrison | Phase Generator disabled 14098 | -7/Garrison | Discovered exit to Factory (range 16) 14125 | -7/Garrison | X0-1V1 revealed exit location to -6/Factory 14188 | -7/Garrison | Weapon slot count reverted to normal (-4) 14283 | -7/Garrison | Triggered checkpoint 14346 | -7/Garrison | Lost 4 allies 14392 | -7/Garrison | Garrison Relay disabled 14410 | -7/Garrison | Expanded RIF knowledge: Code Merge 14514 | -7/Garrison | Build established: Botlord-Mutant 14529 | -7/Garrison | X0-1V1 sent you into danger 14583 | -7/Garrison | Triggered checkpoint 14663 | -7/Garrison | Garrison Relay disabled 14725 | -7/Garrison | Garrison Relay disabled 14803 | -7/Garrison | Entered Factory 14803 | -6/Factory | Accompanied by 1 ally 14803 | -6/Factory | Evolved 2 slots: Power x1, Weapon x1 14863 | -6/Factory | Fabricated M-13 Machinist (x1) 15202 | -6/Factory | X0-1V1 sent you into danger 15225 | -6/Factory | Identified exit to Garrison 15269 | -6/Factory | Entered Garrison 15269 | -6/Garrison | Accompanied by 3 allies 15349 | -6/Garrison | Triggered checkpoint 15380 | -6/Garrison | Garrison Relay disabled 15489 | -6/Garrison | Triggered checkpoint 15490 | -6/Garrison | Triggered checkpoint 15490 | -6/Garrison | Triggered checkpoint 15534 | -6/Garrison | Lost 5 allies 15551 | -6/Garrison | X0-1V1 sent you into danger 15557 | -6/Garrison | Triggered checkpoint 15598 | -6/Garrison | Garrison Relay disabled 15632 | -6/Garrison | Discovered new exit (range 11) 15718 | -6/Garrison | Expanded RIF knowledge: Threat Obfuscation 15884 | -6/Garrison | Discovered new exit (range 15) 15890 | -6/Garrison | Spotted B-86 Titan 15904 | -6/Garrison | Spotted B-86 Titan 15910 | -6/Garrison | X0-1V1 sent allied P-60 Hacker (x2) 15939 | -6/Garrison | Allies destroyed B-86 Titan 16001 | -6/Garrison | Rewired B-90 Cyclops 16026 | -6/Garrison | Identified exit to Factory 16026 | -6/Garrison | X0-1V1 revealed exit location to -5/Factory 16035 | -6/Garrison | Destroyed Cyclops 5a 16071 | -6/Garrison | X0-1V1 activates XOMVISION 16210 | -6/Garrison | Triggered checkpoint 16269 | -6/Garrison | Garrison Relay disabled 16314 | -6/Garrison | Garrison Relay disabled 16353 | -6/Garrison | X0-1V1 downgraded hostiles (x1) 16536 | -6/Garrison | X0-1V1 vaporized surrounding terrain (radius 18) 16545 | -6/Garrison | Triggered checkpoint 16634 | -6/Garrison | Garrison Relay disabled 16645 | -6/Garrison | X0-1V1 activates XOMVISION 16751 | -6/Garrison | Expanded RIF knowledge: Patrol Navigation 16777 | -6/Garrison | Entered Factory 16777 | -5/Factory | Accompanied by 1 ally 16777 | -5/Factory | Evolved 2 slots: Utility x2 17135 | -5/Factory | Identified exit to Upper Caves 18153 | -5/Factory | Found Mni. Smartbomb Launcher 18190 | -5/Factory | Identified exit to Garrison 18222 | -5/Factory | Entered Garrison 18222 | -5/Garrison | Accompanied by 2 allies 18420 | -5/Garrison | Triggered checkpoint 18438 | -5/Garrison | Garrison Relay disabled 18487 | -5/Garrison | Expanded RIF knowledge: Zone Cloak 18588 | -5/Garrison | Triggered checkpoint 18698 | -5/Garrison | X0-1V1 activates XOMVISION 18716 | -5/Garrison | Triggered checkpoint 18716 | -5/Garrison | Triggered checkpoint 18717 | -5/Garrison | Triggered checkpoint 18788 | -5/Garrison | Lost 3 allies 18806 | -5/Garrison | Triggered checkpoint 18859 | -5/Garrison | Triggered checkpoint 18905 | -5/Garrison | Garrison Relay disabled 18972 | -5/Garrison | Discovered new exit (range 10) 18991 | -5/Garrison | X0-1V1 caused items to flee you 19183 | -5/Garrison | Discovered new exit (range 14) 19218 | -5/Garrison | Discovered new exit (range 60) 19218 | -5/Garrison | Discovered new exit (range 7) 19218 | -5/Garrison | Discovered new exit (range 44) 19266 | -5/Garrison | Triggered checkpoint 19353 | -5/Garrison | Garrison Relay disabled 19436 | -5/Garrison | Items stopped fleeing you 19480 | -5/Garrison | Garrison Relay disabled 19532 | -5/Garrison | X0-1V1 activates XOMVISION 19533 | -5/Garrison | Spotted B-75 Beast 19790 | -5/Garrison | Triggered checkpoint 19801 | -5/Garrison | Garrison Relay disabled 19819 | -5/Garrison | X0-1V1 destroyed Phase Generator 19819 | -5/Garrison | Phase Generator disabled 20142 | -5/Garrison | Entered Factory 20142 | -5/Factory | Accompanied by 9 allies 20385 | -5/Factory | Weapon slot count temporarily expanded by X0-1V1 (+1) 20401 | -5/Factory | Lost 6 allies 20483 | -5/Factory | Garrison activated, responded to threat 20544 | -5/Factory | Discovered new exit (range 13) 20663 | -5/Factory | X0-1V1 sent you to a vault 20664 | -5/Factory | Discovered new exit (range 15) 20665 | -5/Factory | Found Prototype Device 20665 | -5/Factory | Identified Exp. Thermal Shield 20683 | -5/Factory | Found Chaos Jack 20706 | -5/Factory | Build established: Botlord-Tank 20739 | -5/Factory | Weapon slot count reverted to normal (-1) 20888 | -5/Factory | Repaired Arm. Heavy Treads 20898 | -5/Factory | P-70 Sage assimilated allied Sentinel 6f 21038 | -5/Factory | Build established: Botlord-Mutant 21178 | -5/Factory | Discovered new exit (range 32) 21262 | -5/Factory | X0-1V1 activates XOMVISION 21394 | -5/Factory | Cargo convoy interrupted 21584 | -5/Factory | System corruption reached 10% 21630 | -5/Factory | Identified exit to Garrison 21635 | -5/Factory | Entered Garrison 21643 | -5/Garrison | Triggered checkpoint 21667 | -5/Garrison | Triggered checkpoint 21828 | -5/Garrison | Garrison Relay disabled 21898 | -5/Garrison | System corruption reached 30% 21943 | -5/Garrison | Lost 3 allies 22093 | -5/Garrison | Triggered checkpoint 22162 | -5/Garrison | Garrison Relay disabled 22216 | -5/Garrison | Spotted B-75 Beast 22243 | -5/Garrison | Triggered checkpoint 22254 | -5/Garrison | Destroyed Beast 6a 22272 | -5/Garrison | Triggered checkpoint 22375 | -5/Garrison | Expanded RIF knowledge: Coupler Efficiency 22389 | -5/Garrison | P-80 Master assimilated allied Slayer 6e 22455 | -5/Garrison | Expanded RIF knowledge: Autooverride 22476 | -5/Garrison | Discovered new exit (range 3) 22553 | -5/Garrison | Garrison Relay disabled 22581 | -5/Garrison | Triggered checkpoint 22678 | -5/Garrison | Triggered checkpoint 22698 | -5/Garrison | Garrison Relay disabled 22747 | -5/Garrison | Discovered new exit (range 10) 22843 | -5/Garrison | Triggered checkpoint 22922 | -5/Garrison | Garrison Relay disabled 22989 | -5/Garrison | Triggered checkpoint 23009 | -5/Garrison | Discovered new exit (range 13) 23079 | -5/Garrison | Discovered new exit (range 61) 23079 | -5/Garrison | Discovered new exit (range 13) 23079 | -5/Garrison | Discovered new exit (range 82) 23128 | -5/Garrison | Found Relay Coupler [Proto] 23130 | -5/Garrison | Found Relay Coupler [Proto] 23136 | -5/Garrison | P-70 Sage assimilated allied Sentinel 6l 23148 | -5/Garrison | X0-1V1 downgraded hostiles (x3) 23175 | -5/Garrison | Lost 4 allies 23215 | -5/Garrison | Entered Factory 23215 | -4/Factory | Evolved 2 slots: Propulsion x1, Utility x1 23226 | -4/Factory | Found Quantum Capacitor 23359 | -4/Factory | Spotted B-86 Titan 23656 | -4/Factory | Manually triggered Chute Trap 23656 | -4/Factory | Sucked down chute 23656 | -4/Factory | Entered Waste 23656 | -4/Waste | The area was eerily silent 23878 | -4/Waste | Discovered new exit (range 18) 23881 | -4/Waste | X0-1V1 caused items to flee you 23886 | -4/Waste | A Compactor rumbled back to life 23889 | -4/Waste | Destroyed C-40 Crusher 23891 | -4/Waste | Build established: Mutant 23950 | -4/Waste | X0-1V1 vaporized surrounding terrain (radius 21) 24116 | -4/Waste | Items stopped fleeing you 24213 | -4/Waste | Entered Factory 24426 | -4/Factory | X0-1V1 put everyone to sleep 24579 | -4/Factory | Garrison activated, responded to threat 24898 | -4/Factory | Identified exit to Research 24898 | -4/Factory | X0-1V1 revealed exit location to -3/Research 24970 | -4/Factory | Build established: Botlord-Mutant 24985 | -4/Factory | Cargo convoy interrupted 25072 | -4/Factory | Destroyed 7 combat bots 25087 | -4/Factory | Lost 8 parts (2p3n3u) 25170 | -4/Factory | X0-1V1 woke everyone up 25204 | -4/Factory | System corruption reached 10% 25216 | -4/Factory | Found Prototype Device 25216 | -4/Factory | Identified Exp. EM Shield 25223 | -4/Factory | Found Prototype Device 25223 | -4/Factory | Identified Exp. Transmission Jammer 25233 | -4/Factory | X0-1V1 turns hostiles against one another 25325 | -4/Factory | Lost 3 allies 25328 | -4/Factory | X0-1V1 revealed exit location to -3/Research 25516 | -4/Factory | Found Quantum Capacitor 25573 | -4/Factory | Discovered new exit (range 6) 25633 | -4/Factory | Identified exit to Garrison 25635 | -4/Factory | Entered Garrison 25635 | -4/Garrison | Accompanied by 3 allies 25745 | -4/Garrison | Destroyed 8 combat bots 25878 | -4/Garrison | Garrison Relay disabled 25901 | -4/Garrison | Expanded RIF knowledge: Autooverride 25927 | -4/Garrison | Found embedded Infiltrators 25937 | -4/Garrison | Triggered checkpoint 26053 | -4/Garrison | Triggered checkpoint 26089 | -4/Garrison | Triggered checkpoint 26126 | -4/Garrison | Triggered checkpoint 26151 | -4/Garrison | Garrison Relay disabled 26192 | -4/Garrison | Discovered new exit (range 12) 26195 | -4/Garrison | Triggered checkpoint 26287 | -4/Garrison | Lost 3 allies 26295 | -4/Garrison | Triggered checkpoint 26309 | -4/Garrison | Triggered checkpoint 26318 | -4/Garrison | Garrison Relay disabled 26483 | -4/Garrison | Discovered new exit (range 12) 26511 | -4/Garrison | Garrison Relay disabled 26512 | -4/Garrison | Lost 3 allies 26515 | -4/Garrison | Triggered checkpoint 26872 | -4/Garrison | X0-1V1 sent you into danger 26955 | -4/Garrison | Discovered new exit (range 15) 26978 | -4/Garrison | System corruption reached 30% 27001 | -4/Garrison | P-80 Master assimilated allied Artificer 7a 27051 | -4/Garrison | Expanded RIF knowledge: Autooverride 27113 | -4/Garrison | Garrison Relay disabled 27211 | -4/Garrison | Entered Extension 27211 | -4/Extension | Accompanied by 7 allies 27276 | -4/Extension | Rescued A7 27301 | -4/Extension | Rescued a captive Derelict 27360 | -4/Extension | X0-1V1 announced a LAN party 27360 | -4/Extension | Rescued a captive Derelict 27362 | -4/Extension | Rescued a captive Derelict 27990 | -4/Extension | X0-1V1 caused items to flee you 28138 | -4/Extension | Spotted B-86 Titan 28165 | -4/Extension | Spotted B-86 Titan 28166 | -4/Extension | Allies destroyed B-86 Titan 28171 | -4/Extension | Destroyed B-86 Titan 28205 | -4/Extension | Lost 4 allies 28242 | -4/Extension | Rescued a captive Derelict 28243 | -4/Extension | Rescued a captive Derelict 28268 | -4/Extension | Items stopped fleeing you 28313 | -4/Extension | Rescued a captive Derelict 28474 | -4/Extension | Rescued a captive Derelict 28476 | -4/Extension | Rescued a captive Derelict 28504 | -4/Extension | Rescued a captive Derelict 28713 | -4/Extension | Rescued a captive Derelict 28750 | -4/Extension | Discovered exit to Research (range 10) 28752 | -4/Extension | Discovered new exit (range 6) 28776 | -4/Extension | X0-1V1 added 0b10 threat records associated with you (major) 28880 | -4/Extension | Entered Cetus 28880 | -4/Cetus | Accompanied by 29 allies (A7) 28885 | -4/Cetus | Acquired a Cetus Manufacturing Module code from A7 28895 | -4/Cetus | Spotted Cetus Guard 28896 | -4/Cetus | Allies destroyed Cetus Guard 28896 | -4/Cetus | Spotted Cetus Guard 28896 | -4/Cetus | Spotted Cetus Guard 28896 | -4/Cetus | Spotted Cetus Guard 28905 | -4/Cetus | Destroyed Cetus Guard 28915 | -4/Cetus | Destroyed Cetus Guard 28922 | -4/Cetus | Allies destroyed Cetus Guard 28946 | -4/Cetus | Lost 5 allies 29012 | -4/Cetus | Started Cetus Manufacturing Module 29025 | -4/Cetus | Escorted A7 to Cetus Mainframe 29037 | -4/Cetus | Manufactured an Enhanced Grunt 29044 | -4/Cetus | Discovered new exit (range 16) 29062 | -4/Cetus | Manufactured an Enhanced Grunt 29081 | -4/Cetus | Discovered exit to Research (range 27) 29087 | -4/Cetus | Manufactured an Enhanced Grunt 29112 | -4/Cetus | Manufactured an Enhanced Grunt 29133 | -4/Cetus | Destroyed Cetus Guard 29137 | -4/Cetus | Manufactured an Enhanced Grunt 29142 | -4/Cetus | Destroyed Cetus Guard 29143 | -4/Cetus | Spotted Cetus Guard 29147 | -4/Cetus | Allies destroyed Cetus Guard 29152 | -4/Cetus | Allies destroyed Cetus Guard 29160 | -4/Cetus | Met Revision 17 29383 | -4/Cetus | Entered Archives 29383 | -4/Archives | Accompanied by 27 allies (A7) 29388 | -4/Archives | Received a hacking code to weaken MAIN.C 29390 | -4/Archives | X0-1V1 activates XOMVISION 29434 | -4/Archives | Discovered new exit (range 16) 29511 | -4/Archives | X0-1V1 vaporized surrounding terrain (radius 21) 29539 | -4/Archives | Discovered exit to Research (range 14) 29583 | -4/Archives | Discovered new exit (range 16) 29813 | -4/Archives | Entered Hub_04(d) 29813 | -4/Hub_04(d) | Accompanied by 25 allies 29907 | -4/Hub_04(d) | Discovered exit to Research (range 22) 29917 | -4/Hub_04(d) | Lost 4 allies 29926 | -4/Hub_04(d) | Discovered exit to Research (range 26) 30110 | -4/Hub_04(d) | X0-1V1 added 0b10 threat records associated with you (considerable) 30150 | -4/Hub_04(d) | Discovered exit to Research (range 33) 30299 | -4/Hub_04(d) | X0-1V1 upgraded ally (x2) 30332 | -4/Hub_04(d) | Lost 4 allies 30429 | -4/Hub_04(d) | X0-1V1 sent you into danger 30444 | -4/Hub_04(d) | Lost 4 allies 30549 | -4/Hub_04(d) | Discovered exit to Research (range 10) 30740 | -4/Hub_04(d) | X0-1V1 enhanced Transport squad support 30768 | -4/Hub_04(d) | X0-1V1 caused items to flee you 30861 | -4/Hub_04(d) | X0-1V1 added 0b10 threat records associated with you (considerable) 30945 | -4/Hub_04(d) | Core integrity restored by X0-1V1 (+258) 30996 | -4/Hub_04(d) | Items stopped fleeing you 31098 | -4/Hub_04(d) | X0-1V1 sent you into danger 31166 | -4/Hub_04(d) | Network Hub disabled 31166 | -4/Hub_04(d) | Network Hub disabled 31293 | -4/Hub_04(d) | Found Quantum Capacitor 31353 | -4/Hub_04(d) | X0-1V1 added 0b10 threat records associated with you (major) 31500 | -4/Hub_04(d) | X0-1V1 added 0b10 threat records associated with you (major) 31568 | -4/Hub_04(d) | Identified exit to Garrison 31577 | -4/Hub_04(d) | Entered Garrison 31584 | -4/Garrison | Triggered checkpoint 31661 | -4/Garrison | Garrison Relay disabled 31699 | -4/Garrison | X0-1V1 sent you into danger 31741 | -4/Garrison | Lost 3 allies 31928 | -4/Garrison | Garrison Relay disabled 31984 | -4/Garrison | Spotted B-86 Titan 31994 | -4/Garrison | Triggered checkpoint 31997 | -4/Garrison | Triggered checkpoint 32005 | -4/Garrison | Triggered checkpoint 32007 | -4/Garrison | Allies destroyed B-86 Titan 32007 | -4/Garrison | Triggered checkpoint 32017 | -4/Garrison | Triggered checkpoint 32048 | -4/Garrison | Lost 5 allies 32101 | -4/Garrison | Lost 4 allies 32103 | -4/Garrison | Discovered exit to Research (range 13) 32136 | -4/Garrison | Expanded RIF knowledge: Command Fork 32218 | -4/Garrison | X0-1V1 destroyed Phase Generator 32218 | -4/Garrison | Phase Generator disabled 32239 | -4/Garrison | Triggered checkpoint 32271 | -4/Garrison | Discovered exit to Research (range 22) 32271 | -4/Garrison | Discovered exit to Research (range 68) 32271 | -4/Garrison | Discovered exit to Research (range 45) 32316 | -4/Garrison | Garrison Relay disabled 32334 | -4/Garrison | Garrison Relay disabled 32470 | -4/Garrison | Spotted B-86 Titan 32497 | -4/Garrison | Allies destroyed B-86 Titan 32514 | -4/Garrison | X0-1V1 rewrote Sentinel 7b IFF filter 32581 | -4/Garrison | Crushed by falling debris 32596 | -4/Garrison | Garrison Relay disabled 32604 | -4/Garrison | Core integrity restored by X0-1V1 (+223) 32666 | -4/Garrison | Entered Research 32666 | -3/Research | Accompanied by 2 allies 32666 | -3/Research | Evolved 2 slots: Power x1, Utility x1 32680 | -3/Research | Found Quantum Capacitor 32820 | -3/Research | Garrison activated, responded to threat 32866 | -3/Research | Revision forces began assault on 0b10 32912 | -3/Research | X0-1V1 redirected Transport squads to designated parking area 32920 | -3/Research | Lost 3 allies 32996 | -3/Research | Met up with Revision 17++ 33366 | -3/Research | Research terminal network offline 33541 | -3/Research | System corruption reached 10% 33589 | -3/Research | Watched by a mysterious "MATRIX" hacker 33616 | -3/Research | Fabricated M-13 Machinist? 33667 | -3/Research | Discovered new exit (range 9) 33667 | -3/Research | Spotted B-90 Cyclops 33677 | -3/Research | X0-1V1 sent allied C-35 Carver (x3) 33698 | -3/Research | X0-1V1 announced a LAN party 33701 | -3/Research | Identified exit to Garrison 33701 | -3/Research | Entered Garrison 33701 | -3/Garrison | Accompanied by 4 allies 33765 | -3/Garrison | X0-1V1 caused items to flee you 33789 | -3/Garrison | Triggered checkpoint 33809 | -3/Garrison | Garrison Relay disabled 33896 | -3/Garrison | Lost 5 allies 33904 | -3/Garrison | X0-1V1 activates XOMVISION 33976 | -3/Garrison | Items stopped fleeing you 34023 | -3/Garrison | X0-1V1 sent you into danger 34027 | -3/Garrison | Triggered checkpoint 34027 | -3/Garrison | Triggered checkpoint 34028 | -3/Garrison | Spotted B-86 Titan 34065 | -3/Garrison | Lost 3 parts (1p1u1w) 34069 | -3/Garrison | Destroyed B-86 Titan 34093 | -3/Garrison | Destroyed 9 combat bots 34130 | -3/Garrison | Lost 15 allies 34222 | -3/Garrison | Discovered new exit (range 12) 34232 | -3/Garrison | Triggered checkpoint 34248 | -3/Garrison | Garrison Relay disabled 34270 | -3/Garrison | Expanded RIF knowledge: Coupler Efficiency 34322 | -3/Garrison | Build established: Scientist-Mutant 34499 | -3/Garrison | Rescued a captive Derelict 34500 | -3/Garrison | Rescued a captive Derelict 34641 | -3/Garrison | Discovered new exit (range 3) 34686 | -3/Garrison | Garrison Relay disabled 34704 | -3/Garrison | Garrison Relay disabled 34735 | -3/Garrison | Triggered checkpoint 34755 | -3/Garrison | X0-1V1 destroyed Phase Generator 34755 | -3/Garrison | Phase Generator disabled 34823 | -3/Garrison | Triggered checkpoint 35003 | -3/Garrison | Discovered new exit (range 65) 35003 | -3/Garrison | Discovered new exit (range 13) 35003 | -3/Garrison | Discovered new exit (range 54) 35023 | -3/Garrison | Entered Research 35023 | -2/Research | Evolved 2 slots: Utility x2 35129 | -2/Research | Found Quantum Capacitor 35193 | -2/Research | Build established: Botlord-Mutant 35421 | -2/Research | Discovered new exit (range 10) 35534 | -2/Research | X0-1V1 whisked you away to safety 35833 | -2/Research | P-80 Master assimilated allied Warden 9d 35864 | -2/Research | Identified exit to Access 35864 | -2/Research | X0-1V1 revealed exit location to -1/Access 35929 | -2/Research | Identified exit to Garrison 35929 | -2/Research | Entered Garrison 35957 | -2/Garrison | Weapon slot count temporarily expanded by X0-1V1 (+2) 35985 | -2/Garrison | Garrison Relay disabled 36019 | -2/Garrison | Discovered exit to Access (range 76) 36019 | -2/Garrison | Discovered exit to Access (range 73) 36019 | -2/Garrison | Discovered exit to Access (range 38) 36072 | -2/Garrison | Spotted B-90 Cyclops 36075 | -2/Garrison | X0-1V1 activates XOMVISION 36119 | -2/Garrison | Destroyed B-90 Cyclops 36167 | -2/Garrison | Triggered checkpoint 36168 | -2/Garrison | Triggered checkpoint 36198 | -2/Garrison | P-80 Master assimilated allied G-73 Enforcer 36203 | -2/Garrison | Lost 3 allies 36232 | -2/Garrison | Build established: Botlord-Tank 36235 | -2/Garrison | Triggered checkpoint 36361 | -2/Garrison | Triggered checkpoint 36385 | -2/Garrison | Rescued a captive Derelict 36386 | -2/Garrison | Rescued a captive Derelict 36431 | -2/Garrison | Garrison Relay disabled 36557 | -2/Garrison | Weapon slot count reverted to normal (-2) 36720 | -2/Garrison | X0-1V1 caused items to flee you 36728 | -2/Garrison | Triggered checkpoint 36769 | -2/Garrison | Expanded RIF knowledge: Crosswire 36808 | -2/Garrison | Expanded RIF knowledge: Code Merge 36856 | -2/Garrison | Build established: Botlord-Mutant 36993 | -2/Garrison | Items stopped fleeing you 36997 | -2/Garrison | Garrison Relay disabled 37102 | -2/Garrison | Entered Access 37102 | -1/Access | Accompanied by 15 allies 37102 | -1/Access | Evolved 2 slots: Weapon x2 37336 | -1/Access | Identified exit to Garrison 37397 | -1/Access | X0-1V1 activates XOMVISION 37571 | -1/Access | Build established: Botlord-Tank 37587 | -1/Access | Entered Garrison 37587 | -1/Garrison | Accompanied by 15 allies 37639 | -1/Garrison | Triggered checkpoint 37659 | -1/Garrison | Garrison Relay disabled 37782 | -1/Garrison | Spotted B-99 Colossus 37784 | -1/Garrison | Triggered checkpoint 37789 | -1/Garrison | X0-1V1 turns hostiles against one another 37791 | -1/Garrison | Triggered checkpoint 37797 | -1/Garrison | P-80 Master assimilated allied Electro 10a 37816 | -1/Garrison | Triggered checkpoint 37818 | -1/Garrison | P-80 Master assimilated allied HL-GIM(g) 37821 | -1/Garrison | Weapon slot count temporarily expanded by X0-1V1 (+1) 37857 | -1/Garrison | X0-1V1 activates XOMVISION 37881 | -1/Garrison | Destroyed B-99 Colossus 37884 | -1/Garrison | Lost 23 allies 37910 | -1/Garrison | Triggered checkpoint 37953 | -1/Garrison | Lost 4 allies 38085 | -1/Garrison | Triggered checkpoint 38118 | -1/Garrison | Lost 3 allies 38124 | -1/Garrison | Garrison Relay disabled 38158 | -1/Garrison | Garrison Relay disabled 38217 | -1/Garrison | Triggered checkpoint 38297 | -1/Garrison | Weapon slot count reverted to normal (-1) 38297 | -1/Garrison | Discovered new exit (range 21) 38370 | -1/Garrison | X0-1V1 destroyed Phase Generator 38370 | -1/Garrison | Phase Generator disabled 38497 | -1/Garrison | Discovered new exit (range 12) 38500 | -1/Garrison | Triggered checkpoint 38515 | -1/Garrison | Garrison Relay disabled 38538 | -1/Garrison | Expanded RIF knowledge: Alert ID Control 38706 | -1/Garrison | Identified exit to Access 38706 | -1/Garrison | X0-1V1 revealed exit location to -1/Access 38768 | -1/Garrison | X0-1V1 whisked you away to safety 39052 | -1/Garrison | Triggered checkpoint 39098 | -1/Garrison | Found Quantum Capacitor 39108 | -1/Garrison | Garrison Relay disabled 39241 | -1/Garrison | Found embedded Infiltrators 39351 | -1/Garrison | Entered Access 39351 | -1/Access | Accompanied by 3 allies 39781 | -1/Access | Lost 3 allies 40050 | -1/Access | Garrison activated, responded to threat 40052 | -1/Access | P-80 Master assimilated allied Y-72 Warden 40114 | -1/Access | X0-1V1 enhanced Transport squad support 40148 | -1/Access | Found Quantum Capacitor 40471 | -1/Access | X0-1V1 vaporized surrounding terrain (radius 19) 40471 | -1/Access | Spotted B-99 Colossus 40476 | -1/Access | Assimilated Colossus 10a with formatsys_high 40502 | -1/Access | Lost 4 allies 40533 | -1/Access | X0-1V1 activates XOMVISION 40780 | -1/Access | Garrison activated, responded to threat 40913 | -1/Access | X0-1V1 activates XOMVISION 41085 | -1/Access | Lost 5 allies 41197 | -1/Access | X0-1V1 destroyed Energy Cycler 41197 | -1/Access | Energy Cycler disabled 41316 | -1/Access | Quantum Reactor+ reconfigured into Greater Item Mimic 41339 | -1/Access | X0-1V1 caused items to flee you 41480 | -1/Access | X0-1V1 vaporized surrounding terrain (radius 21) 41480 | -1/Access | Spotted B-99 Colossus 41480 | -1/Access | Spotted B-99 Colossus 41482 | -1/Access | Assimilated Colossus 10b with formatsys_high 41501 | -1/Access | Assimilated Colossus 10c with formatsys_high 41520 | -1/Access | Discovered new exit (range 5) 41545 | -1/Access | Entered Command 41545 | -1/Command | Accompanied by 7 allies 41794 | -1/Command | Lost 3 allies 42030 | -1/Command | X0-1V1 caused items to flee you 42223 | -1/Command | Items stopped fleeing you 42294 | -1/Command | Spotted M Guard 42294 | -1/Command | Spotted M Guard 42294 | -1/Command | Spotted Combat Programmer 42298 | -1/Command | Spotted Combat Programmer 42321 | -1/Command | System corruption reached 10% 42332 | -1/Command | Destroyed Combat Programmer 42344 | -1/Command | Destroyed Combat Programmer 42355 | -1/Command | Lost 9 allies 42382 | -1/Command | Found Exp. Weapon Cycler 42391 | -1/Command | Lost 13 parts (2p2n7u2w) 42398 | -1/Command | X0-1V1 turns hostiles against one another 42408 | -1/Command | Destroyed M Guard 42422 | -1/Command | Destroyed M Guard 42422 | -1/Command | All MAIN.C guards destroyed 42443 | -1/Command | Found Prototype Launcher 42447 | -1/Command | Found Prototype Energy Cannon 42447 | -1/Command | Identified Cld. Nova Cannon 42452 | -1/Command | Found Prototype Device 42452 | -1/Command | Identified AEGIS Remote Shield 42453 | -1/Command | Lost 3 parts (1n2u) 42660 | -1/Command | Spotted B-99 Colossus 42685 | -1/Command | Destroyed B-99 Colossus 42690 | -1/Command | Build established: Tank 42714 | -1/Command | Lost 4 parts (1p1n2u) 42752 | -1/Command | Core integrity fell below 50% 42756 | -1/Command | X0-1V1 downgraded hostiles (x1) 42757 | -1/Command | System corruption reached 30% 42785 | -1/Command | Lost 3 parts (1p1n1u) 43295 | -1/Command | Found Quantum Capacitor 43602 | -1/Command | Build established: Gunner 43772 | -1/Command | Identified Ragnarok Missile Launcher 43973 | -1/Command | Lost 5 parts (1p2u2w) 44240 | -1/Command | Build established: Scavenger-Gunner 44404 | -1/Command | Met MAIN.C 44418 | -1/Command | 0b10 Conduit disabled 44438 | -1/Command | Destroyed MAIN.C Shell 44441 | -1/Command | MAIN.C activated Command garrisons 44472 | -1/Command | Lost 3 allies 44490 | -1/Command | Core integrity fell below 20% 44497 | -1/Command | X0-1V1 sent allied Wizard (x2) 44510 | -1/Command | Destroyed by MAIN.C with Omega Cannon Last Messages --------------- 44495_ System corrupted: Imp. Heat Sink fused. 44496_ Linear Accelerator destroyed. 44496_ Imp. Matter Compressor destroyed. 44496_ Critical hit (Blast). 44497_ The cosmic winds blow in a new direction. 9J-02W(p) form resolidifies at new position. PX-MUR(p) form resolidifies at new position. 44497_ MAIN.C knocked back. 44498_ 9J-02W(p): "Truly odd." 44499_ MAIN.C knocked back. 44500_ X0-1V1: "I know that drunk sailor look when I see it." 44500_ MAIN.C knocked back. 44504_ Enh. Hardcell Cannon destroyed. 44504_ Dropped Huge Storage Unit. 44507_ Imp. Heat Sink destroyed. 44507_ Adv. Target Analyzer destroyed. 44508_ Movement behavior is fully back under control. 44508_ Extracted 33 matter. 44510_ Relay Coupler [Proto] destroyed. 44510_ X0-1V1 howls with laughter! Map ----- +----------------------------------------------------+ | ?????????????????????????????????????????????????? | | ?????????????????????????????????????????????????? | | ?????????????????????????????????????????????????? | | ?????????????????????????????????????????????????? | | ?????????????????????????????????????????????????? | | ?????????????????????????????????????????????????? | | ?????????????????????????????????????????????????? | | ?????????????????????????????????????????????????? | | ?????????????????????????????????????????????????? | | ?????????????????????????????????????????????????? | | ?????????????????????????????????????????????????? | | ?????????????????????????????????????????????????? | | ?????????????????????????????????????????????????? | | ?????????????????????????????????????????????????? | | ?????????????????????????????????????????????????? | | ?????????????????????????????????????????????????? | | ?????????????????????????????????????????????????? | | ?????????????????????????????????????????????????? | | ?????????????????????????????????????????????????? | | ????????????????############?????????????????????? | | ???????????????""" #?????????????????????? | | ???????????????"" % [#?????????????????????? | | ????????????? "" !%####################### | | ??????????????"" %[*!!!%%=] # | | ??????????????""" %%!!p|%=** # | | ?????????????"" ! @=M*!%%%! # | | ????????????"" % %%################### # | | ???????????"" % #?????????????????# # | | ??????????? " % #?????????????????# # | | ???????????? %% p ""#?????????????????# T | | ???????????? % % " """"#?????????????????#///# | | ???????????? %%% " """""""#?????????????????# | | ???????????? """""""""""#?????????????????# | | ????????????? " " " " ??????????????????# | | ????????????? ??" ??"??? ????????????????????# | | ?????????????????????????????????????????????# | | ?????????????????????????????????????????????# | | ?????????????????????????????????????????????##### | | ?????????????????????????????????????????????????? | | ?????????????????????????????????????????????????? | | ?????????????????????????????????????????????????? | | ?????????????????????????????????????????????????? | | ?????????????????????????????????????????????????? | | ?????????????????????????????????????????????????? | | ?????????????????????????????????????????????????? | | ?????????????????????????????????????????????????? | | ?????????????????????????????????????????????????? | | ?????????????????????????????????????????????????? | | ?????????????????????????????????????????????????? | | ?????????????????????????????????????????????????? | +----------------------------------------------------+ Best States ------------- Heat Dissipation 148 Coolant Potential 100 Energy Generation 83 Energy Capacity 2725 Matter Stores 1000 Matter Capacity 1000 Sight Range 22 Terrain Scan Density 210 Jamming Range 22 Power Amplification 30 EM Shielding 4 Armor Coverage 1200 Resistance: KI 39 Resistance: TH 30 Resistance: EM 75 Weapon Cycling 30 Evasion (%) 50 Targeting Accuracy 8 Target Analysis 12 Recoil Reduction 6 Energy Filtering 50 Offensive Hacking 14 Relay Coupler Types 9 Relay Coupler Value 389 Authchip Count 1 Item Schematics ----------------- Imp. Heavy Armor Plating | -8/Materials | Scanalyzed Robot Schematics ------------------ M-13 Machinist | -10/Materials | Hacked Fabricated ------------ M-13 Machinist | x1 | -6/Factory | Authchip M-13 Machinist | x1 | -3/Research | Authchip Repaired ---------- Lgt. Treads | 25% | -10/Materials Imp. Heavy Treads | 50% | -7/Factory Arm. Heavy Treads | 32% | -5/Factory Studied --------- Hvy. Particle Cannon | -8/Materials | Hacked Lgt. Treads | -8/Materials | Hacked Remote Datajack | -6/Factory | Hacked Imp. Grenade Launcher | -6/Factory | Hacked Hyb. Antimatter Reactor | -5/Factory | Hacked Antimatter Reactor | -4/Factory | Hacked Arm. Heavy Treads | -4/Factory | Hacked Enh. Nova Cannon | -3/Research | Hacked Adv. Remote Datajack | -3/Research | Hacked Quantum Reactor | -3/Research | Hacked Biometal Heavy Treads | -3/Research | Hacked Alien Tech Used ----------------- None Achievements -------------- None Challenges ------------ None Game ------ Seed AlloySniperWall Manual? 0 Play Time 05:41:02 Cumulative 889.0 hours Start 2026.09.01 @ 14:57:15 End 2026.09.02 @ 18:33:43 Sessions 23 Manual Loads 0 Difficulty Rogue Special Mode None Game No. 437 Rogue 437 Adventurer 0 Explorer 0 Win Type - Total 78 Types 50/6/8/4/1/1/3/3/1/1 Lore% 93 Gallery% 84 Achievement% 76 Wizard Run 0 Options --------- Layout 0 ASCII 0 Keyboard 1 Movement Numpad Keybinds 0 Fullscreen 2 Font 18/SmallcapsGlow Map View 76x50 Zoom Use 0% Tactical HUD 1 Map Filters NONE Filters NONE Steam 1 RUN: 648c9d3d-91a1-45d3-a73f-08201271c75e